Cogmind - Beta 15 @@@ ROGUE MODE // 2025.10.14 @ 22:23:09 Player: Bikerider58 Result: Self-destructed Performance ------------- Evolutions (9) 4500 Regions Visited (30) 6000 Robots Destroyed (428) 2140 Value Destroyed (26191) 26191 Prototype IDs (43) 860 Alien Tech Used (0) 0 Bonus (25078) 25078 TOTAL SCORE: 64769 Bonus ------- Triggered High Security 500 High Alert Combat Kills 8539 Follower Combat Kills 7549 Entered Garrisons 1800 Used RIF Installer 5000 Entered DSFs 500 Network Hubs Disabled 200 Aligned with FarCom 300 Built Enhanced Grunts 300 A7 Reached Mainframe 300 Met R17 at Cetus 500 Friendly Fire -410 Cogmind --------- Core Integrity 325/1600 Matter 127/300 Energy 99/100 System Corruption 70% Temperature Cool (0) Movement Core (50) Location -1/Access Parts ------- > --- POWER (2) -------- (None) > --- PROPULSION (6) --- (None) > --- UTILITY (13) ----- (None) > --- WEAPON (4) ------- (None) > --- INVENTORY (5) ---- Particle Reactor Improved Medium Armor Plating Advanced Variable Charge Gun Enhanced Nova Cannon Enhanced Nova Cannon Peak State ------------ > --- POWER ------------ Quantum Reactor Quantum Reactor > --- PROPULSION ------- Armored Heavy Treads Armored Heavy Treads Armored Heavy Treads > --- UTILITY ---------- Advanced Coolant Injector Advanced Coolant Injector Huge Storage Unit Experimental Optical Array Advanced Targeting Computer Advanced Transmission Jammer Layered Heavy Armor Plating Advanced Force Field Relay Coupler [NC] Relay Coupler [Grunt] Relay Coupler [Sentry] Relay Coupler [Specialist] > --- WEAPON ----------- Enhanced Quantum Rifle Enhanced Quantum Rifle Enhanced Quantum Rifle Enhanced Nova Cannon > --- INVENTORY -------- Reinforced Antimatter Reactor Particle Reactor Armored Medium Treads Improved Heavy Treads Armored Heavy Treads Advanced Heavy Siege Treads Advanced Heat Sink Advanced Phase Shifter Improved Medium Armor Plating Graphene Brace Advanced Force Field System Shield Relay Coupler [Proto] Relay Coupler [Proto] Advanced Variable Charge Gun Enhanced Nova Cannon Enhanced Nova Cannon Enhanced Nova Cannon Enhanced Nova Cannon Tiamat Missile Launcher Advanced Remote Datajack Advanced Remote Datajack [Rating: 187] Favorites ----------- Power Quantum Reactor Engine Light Ion Engine Power Core Light Nuclear Core Reactor Quantum Reactor Propulsion Improved Heavy Treads Treads Improved Heavy Treads Leg Enhanced Armored Leg Wheel Compact Wheel Utility Advanced Heat Sink Device Advanced Heat Sink Storage High-capacity Storage Unit Processor Experimental Optical Array Hackware Relay Coupler [Sentry] Protection Centrium Medium Armor Plating Weapon Heavy Plasma Cannon Energy Gun Precision Beam Rifle Energy Cannon Heavy Plasma Cannon Ballistic Gun Assault Rifle Ballistic Cannon Hardcell Cannon Launcher Tiamat Missile Launcher Special Weapon Advanced Remote Datajack Impact Weapon Thunder Hammer Build | -11 -10 -10 -10 -9 -8 -8 -8 -8 -7 -7 -6 -6 -6 -6 -6 -5 -5 -5 -5 -4 -4 -4 -4 -3 -3 -2 -2 -2 -2 -1 ------- Run | Yrd Mat Min Exi Min Mat Gar Mat Gar Fac DSF Fac Ext Cet Arc Hub Fac Gar Fac Gar Fac Gar Fac Gar Res Gar Res Gar Res Gar Acc Slots Evolved 18 | . . . . . 4 . . . 2 . 2 . . . . 2 . . . 2 . . . 2 . 2 . . . 2 Power 1 | . . . . . . . . . . . . . . . . . . . . 1 . . . . . . . . . . Propulsion 4 | . . . . . 1 . . . 1 . 1 . . . . . . . . 1 . . . . . . . . . . Utility 11 | . . . . . 2 . . . 1 . 1 . . . . 2 . . . . . . . 1 . 2 . . . 2 Weapon 2 | . . . . . 1 . . . . . . . . . . . . . . . . . . 1 . . . . . . Parts Attached 269 | 7 6 . 1 1 29 1 4 12 2 12 24 7 6 2 3 9 4 3 10 4 12 6 13 4 17 . 20 4 20 26 Power 19 | 1 . . 1 . 3 . . 3 . 1 1 1 1 . . . . . . 1 1 . 1 . . . 1 . . 3 Engine 5 | 1 . . 1 . 1 . . 1 . 1 . . . . . . . . . . . . . . . . . . . . Core 5 | . . . . . 2 . . 2 . . . . . . . . . . . . . . . . . . 1 . . . Reactor 9 | . . . . . . . . . . . 1 1 1 . . . . . . 1 1 . 1 . . . . . . 3 Propulsion 44 | 2 3 . . . 9 . 1 1 1 5 6 . . . . . . . 1 1 3 1 1 . 1 . . . 1 7 Treads 17 | 2 . . . . 1 . . . . . . . . . . . . . . . 3 1 1 . 1 . . . 1 7 Leg 23 | . . . . . 7 . 1 1 1 5 6 . . . . . . . 1 1 . . . . . . . . . . Wheel 4 | . 3 . . . 1 . . . . . . . . . . . . . . . . . . . . . . . . . Hover . | . . . . . . . . . . . . . . . . . . . . . . . . . . . . . . . Flight . | . . . . . . . . . . . . . . . . . . . . . . . . . . . . . . . Utility 140 | 1 2 . . . 9 . 1 5 . 4 11 4 3 2 3 3 3 3 8 2 8 5 6 3 9 . 14 3 17 11 Device 46 | 1 1 . . . 5 . 1 1 . . 4 2 . 2 . 1 1 2 2 . 4 2 2 2 1 . 5 1 3 3 Storage 4 | . 1 . . . . . . . . . 1 . . . . . . . . . . . . . . . . . . 2 Processor 11 | . . . . . 2 . . . . 1 3 . 1 . 1 . . . . . . 1 . . . . . 2 . . Hackware 58 | . . . . . . . . 3 . 2 1 1 . . 2 2 1 1 5 2 4 2 3 1 8 . 6 . 11 3 Protection 21 | . . . . . 2 . . 1 . 1 2 1 2 . . . 1 . 1 . . . 1 . . . 3 . 3 3 Artifact . | . . . . . . . . . . . . . . . . . . . . . . . . . . . . . . . Weapon 66 | 3 1 . . 1 8 1 2 3 1 2 6 2 2 . . 6 1 . 1 . . . 5 1 7 . 5 1 2 5 Energy Gun 27 | 1 . . . . 5 1 1 2 . 1 1 . 1 . . . 1 . . . . . 4 1 1 . 5 1 . 1 Energy Cannon 16 | . . . . . 2 . . . . . 2 1 1 . . 3 . . 1 . . . 1 . 1 . . . 2 2 Ballistic Gun 4 | 2 . . . . 1 . . . . . . . . . . . . . . . . . . . 1 . . . . . Ballistic Cannon 3 | . . . . . . . . . . . . . . . . . . . . . . . . . 3 . . . . . Launcher 7 | . 1 . . . . . 1 . . 1 1 . . . . 2 . . . . . . . . . . . . . 1 Special Weapon 6 | . . . . . . . . 1 1 . . 1 . . . 1 . . . . . . . . 1 . . . . 1 Impact Weapon 3 | . . . . 1 . . . . . . 2 . . . . . . . . . . . . . . . . . . . Slashing Weapon . | . . . . . . . . . . . . . . . . . . . . . . . . . . . . . . . Piercing Weapon . | . . . . . . . . . . . . . . . . . . . . . . . . . . . . . . . Special Melee Weapon . | . . . . . . . . . . . . . . . . . . . . . . . . . . . . . . . Unidentified Prototypes 11 | . . . . . 2 . . . . . 2 . 2 . . 2 . . 1 . 1 . . . . . . . . 1 Corrupted Parts 3 | . . . . . . . . . . . . . . . . . . . . . . . . . . . . . 1 2 System Corruption 18 | . . . . . . . . . . . . . . . . . . . . . . . . . . . . . 1 17 Parts Lost 53 | . 3 . . . 3 . . 3 . 4 4 . 2 . . . . 2 1 . . 1 5 . 1 . 1 . . 23 Power 6 | . . . . . . . . 2 . . . . . . . . . . . . . . 1 . . . . . . 3 Propulsion 14 | . 1 . . . . . . 1 . 3 3 . . . . . . . 1 . . . 1 . 1 . . . . 3 Utility 20 | . 1 . . . 2 . . . . 1 1 . 1 . . . . 2 . . . . 1 . . . 1 . . 10 Weapon 13 | . 1 . . . 1 . . . . . . . 1 . . . . . . . . 1 2 . . . . . . 7 Highest Loss Streak 19 | . 2 . . . 3 . . 2 . 2 3 . 1 . . . . 2 1 . . 1 3 . 1 . 1 . . 19 To Critical Strikes 1 | . . . . . . . . . . . . . 1 . . . . . . . . . . . . . . . . . Average Backups 19 | 1 11 24 24 22 21 23 22 22 24 24 22 18 18 19 20 19 19 19 19 19 19 17 17 17 18 18 19 20 19 19 Power 2 | . 1 3 4 5 5 4 4 3 1 1 1 1 1 2 2 2 2 2 2 1 1 1 . . 1 3 1 1 1 2 Propulsion 2 | . 4 7 6 5 2 3 3 1 . . . 2 3 3 3 3 2 2 3 1 . 1 1 2 1 2 3 2 1 2 Utility 9 | . 1 6 7 7 9 11 11 11 15 14 11 8 7 8 9 8 9 9 8 9 10 9 9 11 10 9 10 12 11 8 Weapon 5 | 1 3 7 6 5 4 5 4 5 6 7 6 6 5 5 5 5 5 5 5 7 5 4 4 3 3 3 3 4 4 6 Tool/Special . | . . . . . . . . . . . . . . . . . . . . . . . . . . . . . . . Unused Backups 97 | . . 1 3 3 18 . 1 7 . 3 6 4 3 2 . . 3 . 3 . 7 3 8 . 3 . 6 . 5 8 Power 19 | . . 1 1 . 7 . . 1 . 1 2 . 1 . . . . . . . . . . . 1 . 2 . . 2 Propulsion 19 | . . . 1 1 4 . . . . . . 2 2 . . . 1 . 1 . 2 . . . . . 3 . 1 1 Utility 43 | . . . . 1 4 . 1 4 . 2 2 1 . 2 . . 2 . 2 . 5 2 5 . 2 . 1 . 4 3 Weapon 16 | . . . 1 1 3 . . 2 . . 2 1 . . . . . . . . . 1 3 . . . . . . 2 Tool/Special . | . . . . . . . . . . . . . . . . . . . . . . . . . . . . . . . Average Slot Usage (%) 91 | . 90 100 100 100 98 100 100 99 92 94 89 99 99 99 100 95 97 100 99 99 86 83 79 78 78 81 82 81 81 83 Engine 1 | . 11 14 14 14 4 . . 1 . . . . . . . . . . . . . . . . . . . . . . Core 1 | . . . . . 4 9 9 7 7 6 . . . . . . . . . . . . . . . . . . . . Reactor 5 | . . . . . . . . . . . 5 6 6 6 6 5 5 5 5 9 10 10 9 9 9 8 8 8 8 7 Treads 6 | . 5 . . . 3 . . . . . . . . . . . . . . . 12 15 14 14 14 13 13 13 13 11 Leg 13 | . . . . . 20 27 27 26 30 26 27 33 33 33 33 29 28 29 29 31 4 . . . . . . . . . Wheel 2 | . 19 28 28 28 2 . . . . . . . . . . . . . . . . . . . . . . . . . Device 15 | . 13 14 14 14 16 18 18 12 15 13 11 12 13 12 12 15 16 13 21 16 17 16 16 15 12 16 14 17 14 17 Storage 6 | . 11 14 14 14 9 9 9 9 7 7 6 6 6 6 6 5 5 5 5 5 5 5 5 4 4 4 4 4 4 4 Processor 8 | . . . . . 8 9 9 9 7 8 7 13 13 13 13 11 11 11 11 10 10 10 10 9 9 8 8 9 8 8 Hackware 3 | . . . . . . . . . . 6 1 . . . . 6 5 8 . 3 2 4 1 2 5 8 10 6 10 13 Protection 3 | . . . . . 1 . . 4 . . 6 6 5 6 6 1 3 5 5 5 5 5 5 4 4 4 5 4 4 4 Energy Gun 8 | . 5 . . . 19 27 25 25 23 18 16 . . . . . . . . . . 4 7 18 8 6 10 8 8 10 Energy Cannon 6 | . . . . . 2 . . . . . . 15 19 20 20 16 16 16 15 12 14 9 3 . 3 4 3 4 3 2 Ballistic Gun 2 | . 21 28 28 18 3 . . . . . . . . . . . . . . . . . . . . . . . . . Special Weapon 1 | . . . . . . . . . . 3 1 . . . . . . . . 2 . . . . . 1 1 3 3 3 Peak Build Rating 187 | 6 11 11 13 13 42 37 39 41 42 49 94 97 105 105 106 119 122 120 123 129 132 138 141 151 153 157 163 158 172 187 Average Rating 102 | 3 8 11 12 12 34 36 38 39 42 44 61 93 102 104 105 116 120 117 117 126 130 132 135 148 146 155 157 156 164 179 On Entrance 88 | . 5 11 11 13 13 37 37 39 40 42 45 94 97 105 105 106 116 120 119 115 129 129 137 136 148 144 157 158 156 165 Naked Turns 7 | . . . . . . . . . . . . . . . . . . . . . . . . . . . . . . 7 Heaviest Build 190 | 7 87 87 87 88 104 94 98 107 96 117 123 94 99 99 99 102 99 102 103 123 123 122 138 141 157 150 150 141 145 190 Greatest Support 225 | 40 40 26 26 26 60 34 36 43 56 56 120 120 120 120 120 120 120 120 120 130 225 225 225 225 225 220 220 220 220 225 Greatest Overweight (x) 5 | . 5 3 3 3 3 2 2 2 1 3 4 . . . . 1 1 . . . 1 . . . . . . . . 1 Average Overweight (x) . | . 2 3 3 3 1 2 2 2 1 1 . . . . . . . . . . . . . . . . . . . . Largest Inventory Capacity 25 | 5 25 25 25 25 25 25 25 25 25 25 25 20 20 20 20 20 20 20 20 20 20 20 20 20 20 20 20 20 20 25 Average Capacity 21 | 5 22 25 25 25 25 25 25 25 25 25 22 20 20 20 20 20 20 20 20 20 20 20 20 20 20 20 20 20 20 24 Most Carried 25 | 4 22 25 25 25 25 25 25 25 24 25 25 20 20 20 20 20 20 20 20 20 20 20 20 20 20 20 20 20 20 25 Average Carried 20 | 1 11 24 24 24 24 25 24 24 24 24 22 19 19 19 20 19 19 19 19 19 19 19 19 19 19 19 19 19 19 21 Final Capacity 25 | 5 25 25 25 25 25 25 25 25 25 25 20 20 20 20 20 20 20 20 20 20 20 20 20 20 20 20 20 20 20 5 Final Carried 25 | 2 22 25 25 25 25 25 25 25 24 25 20 20 20 20 20 20 20 20 20 19 20 20 20 20 20 20 20 20 20 5 Class Distribution -------------------- 28% | Scavenger-Skirmisher 24% | Botlord-Tank 14% | Scavenger-Tank 8% | Mutant 5% | Commander-Tank 3% | Bothacker-Skirmisher 3% | Scavenger-Mutant 3% | Bothacker-Tank Dominant Class ---------------- Mutant | -10/Materials Mutant | -10/Mines Scavenger-Mutant | -10/Exiles Scavenger-Mutant | -9/Mines Scavenger-Skirmisher | -8/Materials Scavenger-Skirmisher | -8/Garrison Scavenger-Skirmisher | -8/Materials Scavenger-Skirmisher | -8/Garrison Scavenger-Skirmisher | -7/Factory Bothacker-Skirmisher | -7/DSF Scavenger-Skirmisher | -6/Factory Commander-Mutant | -6/Extension Scavenger-Skirmisher | -6/Cetus Scavenger-Skirmisher | -6/Archives Scavenger-Skirmisher | -6/Hub_04(d) Scavenger-Skirmisher | -5/Factory Scavenger-Skirmisher | -5/Garrison Bothacker-Skirmisher | -5/Factory Scavenger-Tank | -5/Garrison Scavenger-Tank | -4/Factory Commander-Tank | -4/Garrison Scavenger-Tank | -4/Factory Scavenger-Tank | -4/Garrison Botlord-Tank | -3/Research Botlord-Tank | -3/Garrison Botlord-Tank | -2/Research Botlord-Tank | -2/Garrison Botlord-Tank | -2/Research Botlord-Tank | -2/Garrison Botlord-Tank | -1/Access Resources | -11 -10 -10 -10 -9 -8 -8 -8 -8 -7 -7 -6 -6 -6 -6 -6 -5 -5 -5 -5 -4 -4 -4 -4 -3 -3 -2 -2 -2 -2 -1 ----------- Run | Yrd Mat Min Exi Min Mat Gar Mat Gar Fac DSF Fac Ext Cet Arc Hub Fac Gar Fac Gar Fac Gar Fac Gar Res Gar Res Gar Res Gar Acc Matter Collected 9610 | 211 374 12 . 28 476 56 121 422 . 57 678 128 80 30 30 206 249 . 586 . 656 331 695 . 1385 . 821 219 625 1134 Remotely . | . . . . . . . . . . . . . . . . . . . . . . . . . . . . . . . Salvage Created 20897 | 14 463 35 . 105 2114 108 663 930 . 258 1299 1681 273 292 259 392 696 176 756 108 1880 647 1667 . 1395 . 872 467 667 2680 Parts 850 | 3 31 7 . 1 108 4 18 43 . 11 63 46 10 16 18 25 27 11 31 3 51 22 72 . 47 . 25 25 33 99 Haulers Intercepted 8 | . . . . . 3 . 1 . . . 1 1 . . . . . . . . . . . . . . . . . 2 Recyclers Shooed 5 | . 1 . . . . . . . . . 3 . . . . . . . . . . . . . . . . . . 1 Parts Field Recycled . | . . . . . . . . . . . . . . . . . . . . . . . . . . . . . . . Retrieved Matter . | . . . . . . . . . . . . . . . . . . . . . . . . . . . . . . . Parts Self-Destructed . | . . . . . . . . . . . . . . . . . . . . . . . . . . . . . . . Prevented . | . . . . . . . . . . . . . . . . . . . . . . . . . . . . . . . Kills | -11 -10 -10 -10 -9 -8 -8 -8 -8 -7 -7 -6 -6 -6 -6 -6 -5 -5 -5 -5 -4 -4 -4 -4 -3 -3 -2 -2 -2 -2 -1 ------- Run | Yrd Mat Min Exi Min Mat Gar Mat Gar Fac DSF Fac Ext Cet Arc Hub Fac Gar Fac Gar Fac Gar Fac Gar Res Gar Res Gar Res Gar Acc Combat Hostiles Destroyed 359 | . 10 . . 1 33 2 11 23 . 7 27 21 3 1 3 11 17 3 12 2 21 7 35 . 34 . 13 7 17 38 Melee 2 | . . . . . . . . . . . . 2 . . . . . . . . . . . . . . . . . . Guns 145 | . 8 . . 1 26 2 7 18 . 4 13 . . . . . . . . . . 3 18 . 13 . 3 3 7 19 Cannons 88 | . . . . . 6 . . . . . . 14 2 1 3 6 10 2 9 1 8 2 8 . 5 . 4 1 2 4 AOE 93 | . 2 . . . . . 4 3 . 3 11 . . . . 5 7 . 1 . 9 . 9 . 16 . 5 1 6 11 Classes Destroyed 21 | 1 4 . . 1 6 . 1 1 . . 1 1 . . . . 1 . . . 1 . . . . . . . 1 2 Worker 4 | . 1 . . . 2 . . . . . 1 . . . . . . . . . . . . . . . . . . . Builder 5 | . . . . . . . 1 . . . 1 . . . 2 . . . . . . 1 . . . . . . . . Tunneler 9 | 1 . 2 . . 2 . . . . . 3 1 . . . . . . . . . . . . . . . . . . Hauler 8 | . . . . . 3 . 1 . . . 1 1 . . . . . . . . . . . . . . . . . 2 Recycler 12 | . 3 . . 1 2 . 2 . . . . 2 . . . . . . . . . 1 . . . . . . . 1 Operator 11 | . . . . . 2 . . . . . 1 . . 6 . . . . . . . 1 . . . . . 1 . . Watcher 9 | . . . . . 3 . 2 . . . 2 . 2 . . . . . . . . . . . . . . . . . Swarmer 81 | . 6 . . . 4 . 4 3 . 3 6 . . . . 7 3 . . . 8 . 8 . 11 . 4 . 7 7 Cutter 7 | . . . . . . . . . . . . . . . . . 2 . . . . . 4 . . . . . 1 . Saboteur 6 | . . . . . . . . . . . . . . . . . . . . . . . . . . . . . 4 2 Grunt 130 | . 4 . . . 16 2 6 12 . 3 7 13 . . . 1 8 1 6 . 7 2 11 . 12 . 4 . 2 13 Brawler 7 | . . . . 1 1 . 1 . . . . . . . . 1 . . . . . . . . . . . . . 3 Duelist 4 | . . . . . . . . . . . . . . . . . . . . . 1 . 1 . . . . 1 . 1 Protector 2 | . . . . . . . . . . . 1 . . . . . . . . . . . . . . . . . . 1 Sentry 33 | . . . . . 5 . . 3 . . 1 4 . 1 3 1 2 . 2 . 4 1 4 . . . 1 . 1 . Specialist 15 | . . . . . 6 . 1 . . 2 2 . . . . . . . . . 1 . . . 2 . . . . 1 Hunter 24 | . . . . . 1 . . . . . 6 1 . . . . . . 1 . 1 3 2 . 4 . . 3 . 2 Programmer 46 | . . . . . . . . 5 . . 4 1 . . . 1 2 2 2 2 2 1 4 . 4 . 3 3 2 8 Heavy 1 | . . . . . . . . . . . . . . . . . . . . . . . . . . . . . . 1 Behemoth 8 | . . . . . . . . . . . . 2 . . . . . . 1 . . . 1 . 1 . 2 . 1 . Cetus Guard 3 | . . . . . . . . . . . . . 3 . . . . . . . . . . . . . . . . . Investigator 1 | . . . . . . . . . . . . . . . . . . . . . . . . . . . . . . 1 Guerrilla 1 | . . . . . . . . . . . . 1 . . . . . . . . . . . . . . . . . . Infiltrator 1 | . . . . . . . . . . . . . . . . . . . . . . . . . . . 1 . . . Best Kill Streak 10 | 1 3 2 . 1 7 2 10 4 . 3 10 4 3 4 3 5 6 2 4 2 8 2 8 . 5 . 4 2 7 9 Combat Bots Only 9 | . 3 . . 1 6 2 6 4 . 3 9 4 3 1 2 5 6 2 4 2 8 2 8 . 5 . 4 2 7 8 Max Kills in Single Turn 4 | 1 2 1 . 1 2 1 4 2 . 2 4 2 1 1 1 4 3 1 1 1 4 2 2 . 3 . 2 1 4 3 Gunslinging 1 | . . . . . 1 . . 1 . . . . . . . . . . . . . . 1 . . . 1 . . . Exploded 4 | . 2 . . . . . 2 2 . 2 3 . . . . 4 3 . 1 . 4 . 2 . 3 . 2 1 3 3 Melee 1 | . . . . . . . . . . . . 1 . . . . . . . . . . . . . . . . . . Uniques/NPCs Destroyed . | . . . . . . . . . . . . . . . . . . . . . . . . . . . . . . . Combat | -11 -10 -10 -10 -9 -8 -8 -8 -8 -7 -7 -6 -6 -6 -6 -6 -5 -5 -5 -5 -4 -4 -4 -4 -3 -3 -2 -2 -2 -2 -1 -------- Run | Yrd Mat Min Exi Min Mat Gar Mat Gar Fac DSF Fac Ext Cet Arc Hub Fac Gar Fac Gar Fac Gar Fac Gar Res Gar Res Gar Res Gar Acc Hostile Shots Fired 2166 | . 52 . . . 158 7 21 67 . 32 211 180 38 8 36 13 42 18 56 18 79 40 158 . 187 . 64 48 55 578 Missed 652 | . 14 . . . 56 1 9 23 . 9 82 60 14 2 20 2 15 6 10 3 31 10 39 . 51 . 20 12 20 143 Hits 1514 | . 38 . . . 102 6 12 44 . 23 129 120 24 6 16 11 27 12 46 15 48 30 119 . 136 . 44 36 35 435 Melee 23 | . . . . . . . . . . . 1 . . . . . 3 . . . . . 5 . . . . . 5 9 Projectile 1491 | . 38 . . . 102 6 12 44 . 23 128 120 24 6 16 11 24 12 46 15 48 30 114 . 136 . 44 36 30 426 AOE 6 | . . . . . . . . . . . . . . . . . 3 . . . . . . . 1 . . . 2 . Critical Strikes 91 | . . . . . 2 . . 2 . . . 4 6 2 . . 2 1 1 1 6 1 11 . 9 . 4 2 3 34 Actively Blocked 32 | . . . . . . . . . . . . . . . . . . . . . . . 2 . 3 . . . . 27 Part Disruptions 5 | . . . . . . . . . . . . . . . . 2 . . . . . . . . . . . . . 3 Damage Taken 25040 | . 444 . . . 1461 95 159 640 . 603 1973 1177 571 138 121 342 660 207 765 226 734 457 1462 . 1468 . 599 533 531 9674 Core 2855 | . 131 . . . 287 18 51 107 . 109 351 119 63 . 11 34 56 13 57 . 9 11 46 . 23 . 13 30 41 1275 Absorbed by Shields 7698 | . . . . . . . . 26 . . 64 48 83 . . . . 25 273 82 272 173 1208 . 1544 . 617 553 468 2262 Reduced by Siege Mode 1455 | . . . . . . . . . . . . . . . . . . . . . 16 45 88 . 58 . 38 15 6 1189 Ignored by Resistances 141 | . . . . . . . . . . . . 137 4 . . . . . . . . . . . . . . . . . Regen/Repaired (Parts) 2481 | . . . . . 158 . 49 . . . 173 . . . . . . 457 . 435 . . . . . . 429 270 . 510 Core Remaining (%) 72 | 100 . . . 47 . . . 15 . 84 . . . . 36 . . . 84 . . . 94 . 98 . . . 94 . Volleys Fired 1323 | 2 46 4 . 1 88 19 26 124 . 26 66 51 18 14 13 24 36 19 92 8 91 46 85 . 102 3 61 40 56 162 Largest 4 | 2 2 2 . 2 3 3 3 3 . 3 3 3 3 3 3 3 3 3 3 3 3 3 3 . 4 1 4 4 4 4 Hottest 358 | 60 60 40 . 40 183 177 183 183 . 183 183 270 270 270 270 294 294 294 294 286 286 268 338 . 342 105 358 300 300 315 Shots Fired 2811 | 4 90 8 . 2 265 37 73 216 . 51 149 118 45 42 22 55 86 29 162 18 197 89 188 . 214 3 126 75 101 346 Gun 1503 | 4 87 8 . 2 223 37 71 204 . 42 135 . 1 . . . 1 . 1 . 1 23 111 . 142 . 63 42 51 254 Cannon 1038 | . . . . . 42 . . . . . . 116 44 42 22 51 81 24 146 16 176 51 62 . 38 2 33 23 25 44 Launcher 85 | . 3 . . . . . 2 4 . 4 6 . . . . 1 4 . . . 5 . 13 . 22 . 7 . 4 10 Special 185 | . . . . . . . . 8 . 5 8 2 . . . 3 . 5 15 2 15 15 2 . 12 1 23 10 21 38 Kinetic 156 | 2 60 8 . 2 49 . . . . . . . . . . . . . . . . . . . 28 . 7 . . . Thermal 2334 | 2 27 . . . 216 37 71 204 . 42 112 116 45 42 22 51 82 24 147 16 177 74 156 . 141 2 89 65 76 298 Explosive 84 | . 3 . . . . . 2 4 . 4 6 . . . . 1 4 . . . 5 . 13 . 22 . 7 . 4 9 Electromagnetic 51 | . . . . . . . . . . . 23 . . . . . . . . . . . 17 . 11 . . . . . Robot Hit Streak 34 | 3 10 8 . 1 29 3 29 30 . 12 22 34 9 9 7 7 15 7 18 14 32 8 29 . 24 1 14 18 20 24 Robot Miss Streak 8 | . 2 2 . . 3 1 2 1 . 2 3 5 2 2 2 6 4 3 2 2 3 4 3 . 3 . 3 6 3 8 Penetration Max . | . . . . . . . . . . . . . . . . . . . . . . . . . . . . . . . Secondary Targets 23 | . . . . . 4 . 2 1 . 1 3 . . . . . . . . . . . 4 . 3 . 1 . . 4 Max Gunslinging Chain 2 | . . . . . 2 . 1 1 . 1 1 . . . . . . . . . . . 2 . 1 . 1 . . 1 Shots Hit Robots 1842 | 3 57 3 . 2 196 7 52 117 . 40 124 97 29 33 13 28 51 11 67 11 131 56 135 . 148 1 85 43 68 234 Core Hits 841 | 1 27 2 . 2 84 4 26 44 . 19 69 39 16 16 8 17 29 3 20 1 52 17 77 . 81 . 43 14 31 99 Critical Kills 21 | . . . . . . . . . . . 1 4 1 . . . . 1 1 1 7 1 1 . . . 1 . 2 . Critical Parts Destroyed 10 | . 1 . . . . . . . . . 1 2 . . . . . . . . . . 4 . 2 . . . . . Critical Strikes 77 | . 1 . . . 12 1 7 11 . 4 10 6 1 . . . . 1 1 1 7 1 6 . 4 . 1 . 2 . Burn 45 | . . . . . 12 1 7 11 . 4 8 . . . . . . . . . . . 1 . 1 . . . . . Meltdown 19 | . . . . . . . . . . . . 4 1 . . . . 1 1 1 7 1 . . . . 1 . 2 . Destroy 8 | . 1 . . . . . . . . . . . . . . . . . . . . . 5 . 2 . . . . . Corrupt 1 | . . . . . . . . . . . . . . . . . . . . . . . . . 1 . . . . . Smash 4 | . . . . . . . . . . . 2 2 . . . . . . . . . . . . . . . . . . Melee Attacks 45 | . . . . 1 . . . . . . 12 32 . . . . . . . . . . . . . . . . . . Impact 45 | . . . . 1 . . . . . . 12 32 . . . . . . . . . . . . . . . . . . Slashing . | . . . . . . . . . . . . . . . . . . . . . . . . . . . . . . . Piercing . | . . . . . . . . . . . . . . . . . . . . . . . . . . . . . . . Sneak Attacks 8 | . . . . 1 . . . . . . 4 3 . . . . . . . . . . . . . . . . . . Combat Hostiles . | . . . . . . . . . . . . . . . . . . . . . . . . . . . . . . . Follow-up Attacks . | . . . . . . . . . . . . . . . . . . . . . . . . . . . . . . . Damage Inflicted 63066 | 37 714 39 . 81 3092 121 1231 2022 . 1163 4709 3745 1061 1121 416 1156 2731 320 1810 366 4839 1371 6474 . 7369 . 3493 1335 2900 9350 Guns 23223 | 37 541 39 . 21 2563 121 907 1754 . 604 1979 . . . . . . . . . . 444 2269 . 2619 . 1386 935 1198 5806 Cannons 21329 | . . . . . 523 . . . . . . 2862 1061 1121 416 864 1546 305 1810 366 3641 927 1477 . 1097 . 915 400 506 1492 Explosions 16801 | . 161 . . . . . 324 268 . 559 2053 . . . . 292 1185 . . . 1198 . 2728 . 3653 . 1192 . 1173 2015 Melee 1611 | . . . . 60 . . . . . . 668 883 . . . . . . . . . . . . . . . . . . Ramming 102 | . 12 . . . 6 . . . . . 9 . . . . . . 15 . . . . . . . . . . 23 37 Kinetic 1769 | 26 337 39 . 21 358 . . . . . . . . . . . . . . . . . . . 786 . 202 . . . Thermal 42050 | 11 204 . . . 2728 121 907 1754 . 604 1796 2862 1061 1121 416 864 1546 305 1810 366 3641 1371 3519 . 2607 . 2099 1335 1704 7298 Explosive 16597 | . 155 . . . . . 324 268 . 559 1879 . . . . 268 1185 . . . 1198 . 2728 . 3653 . 1192 . 1173 2015 Electromagnetic 937 | . 6 . . . . . . . . . 357 . . . . 24 . . . . . . 227 . 323 . . . . . Impact 1611 | . . . . 60 . . . . . . 668 883 . . . . . . . . . . . . . . . . . . Slashing . | . . . . . . . . . . . . . . . . . . . . . . . . . . . . . . . Piercing . | . . . . . . . . . . . . . . . . . . . . . . . . . . . . . . . Highest Corruption 69 | . . . . . 4 4 4 5 . . 3 3 3 3 . 1 2 7 10 3 4 4 8 . 5 . 5 5 10 69 Average Corruption 6 | . . . . . 4 4 4 4 . . 1 3 3 2 . 1 1 3 9 2 3 4 7 . 4 . 4 5 8 29 Corruption Purged 3 | . . . . . . . . . . . . . . 3 . . . . . . . . . . . . . . . . Corruption Blocked . | . . . . . . . . . . . . . . . . . . . . . . . . . . . . . . . Effects 529 | . . . . . 31 7 15 44 . . 5 27 8 . . . 9 15 34 1 49 19 35 . 22 . 26 19 56 107 Message Errors 109 | . . . . . 7 4 2 15 . . . 3 3 . . . 1 3 6 . 17 2 7 . 5 . 5 2 17 10 Matter Fused 108 | . . . . . 6 1 4 8 . . 2 5 . . . . 1 2 10 . 7 6 8 . 10 . 5 3 14 16 Heat Flow Errors 64 | . . . . . 4 . 3 9 . . 1 6 1 . . . 2 1 3 . 2 5 4 . 2 . 3 2 4 12 Energy Discharges 57 | . . . . . 4 . 1 5 . . 1 5 1 . . . 1 1 6 1 5 2 5 . 2 . 1 3 8 5 Parts Rejected 7 | . . . . . . 1 . . . . . . . . . . . . 1 . . . . . . . . . 2 3 Parts Fused 5 | . . . . . 1 . . . . . . . . . . . . . . . 2 1 . . . . 1 . . . Data Loss (minor) 64 | . . . . . 5 . 2 . . . . 5 1 . . . 3 3 2 . 6 . 6 . 1 . 3 7 7 13 Data Loss (major) 27 | . . . . . 1 1 . 3 . . . . 1 . . . . 1 4 . 4 . . . 1 . 3 . 1 7 Misfires 24 | . . . . . 2 . 2 1 . . . 1 . . . . . 1 1 . 3 1 1 . . . 3 1 1 6 Alerts 15 | . . . . . . . 1 . . . 1 1 . . . . 1 1 . . . 2 2 . 1 . 2 . 1 2 Misdirections 3 | . . . . . . . . . . . . . . . . . . . . . . . . . . . . . . 3 Weapon Failures 46 | . . . . . 1 . . 3 . . . 1 1 . . . . 2 1 . 3 . 2 . . . . 1 1 30 Overload Shots 18 | . . . . . . . . . . . . . 1 . . . 1 . 1 . 1 . 1 . 1 . . . . 12 Effects 1 | . . . . . . . . . . . . . . . . . . . . . . . . . . . . . . 1 Heat Surge 1 | . . . . . . . . . . . . . . . . . . . . . . . . . . . . . . 1 Overflow Damage 1406 | . . . . . . . . . . 8 340 249 . 45 . . 22 11 27 6 124 8 149 . 301 . 54 1 2 59 Projectiles 280 | . . . . . . . . . . . . 5 . 45 . . 22 11 27 6 76 8 17 . 25 . 23 1 . 14 Explosions 593 | . . . . . . . . . . 8 51 . . . . . . . . . 48 . 132 . 276 . 31 . 2 45 Melee 533 | . . . . . . . . . . . 289 244 . . . . . . . . . . . . . . . . . . Knockbacks 5 | . . . . . . . . . . . 1 2 . . . . . . . . . . . . 1 . 1 . . . Impact 3 | . . . . . . . . . . . 1 2 . . . . . . . . . . . . . . . . . . Kinetic 2 | . . . . . . . . . . . . . . . . . . . . . . . . . 1 . 1 . . . Secondary . | . . . . . . . . . . . . . . . . . . . . . . . . . . . . . . . Self-Inflicted Damage 134 | . 36 . . . . . . . . 8 65 . . . . 25 . . . . . . . . . . . . . . Shots 5 | . 1 . . . . . . . . 1 2 . . . . 1 . . . . . . . . . . . . . . Rammed 6 | . 1 . . . . . . . . . . . . . . . . . . . . . . . . . . . 2 3 Targets Rammed 9 | . 1 . . . 1 . . . . . 1 . . . . . . 1 . . . . . . . . . . 2 3 Kicked 3 | . . . . . 1 . . . . . 1 . . . . . . 1 . . . . . . . . . . . . Crushed . | . . . . . . . . . . . . . . . . . . . . . . . . . . . . . . . Highest Temperature 415 | . 147 . . . 243 214 232 288 . . 246 241 364 189 192 270 277 231 180 324 209 228 198 . 287 56 194 235 415 403 Average Temperature 85 | . 48 . . . 49 71 42 84 . . 35 68 112 67 83 78 82 95 62 147 67 98 99 . 94 33 98 82 104 112 Received Heat Transfer 2938 | . 171 . . . 360 54 45 192 . 81 96 473 4 9 36 21 117 . 131 6 145 24 181 . 112 . 68 36 24 552 Effects 7 | . . . . . . . . . . . . . . . . . . . . . . . . . . . . . 4 3 Shutdowns 3 | . . . . . . . . . . . . . . . . . . . . . . . . . . . . . 1 2 Energy Bleed 2 | . . . . . . . . . . . . . . . . . . . . . . . . . . . . . 1 1 Interference 2 | . . . . . . . . . . . . . . . . . . . . . . . . . . . . . 2 . Siege Activations 42 | . . . . . . . . . . . . . . . . . . . . . 4 3 9 . 5 . 3 1 7 10 Total Turns 721 | . . . . . . . . . . . . . . . . . . . . . 76 44 132 . 111 . 44 17 53 244 Longest Duration 68 | . . . . . . . . . . . . . . . . . . . . . 47 20 45 . 39 . 32 17 16 68 Martial Activations . | . . . . . . . . . . . . . . . . . . . . . . . . . . . . . . . Shielding Activations . | . . . . . . . . . . . . . . . . . . . . . . . . . . . . . . . Robots Disrupted 2 | . . . . . . . . . . . . . . . . . . . . . . . 1 . 1 . . . . . Combat Hostiles 2 | . . . . . . . . . . . . . . . . . . . . . . . 1 . 1 . . . . . Robots Corrupted 5 | . . . . . . . . . . . 3 2 . . . . . . . . . . . . . . . . . . Combat Hostiles 1 | . . . . . . . . . . . . 1 . . . . . . . . . . . . . . . . . . Parts Fried 12 | . . . . . . . . . . . 8 2 . . . . . . . . . . 2 . . . . . . . Impact Corruptions 12 | . . . . . . . . . . . 6 6 . . . . . . . . . . . . . . . . . . Robots Melted 34 | . . . . . 1 . . 2 . . 3 4 1 . . . . 1 2 1 9 2 . . . . 1 2 2 3 Combat Hostiles 29 | . . . . . 1 . . 2 . . 3 4 1 . . . . 1 2 1 4 2 . . . . 1 2 2 3 Parts Melted 191 | . . . . . 20 1 12 13 . . 9 14 3 4 3 . 9 3 9 5 20 8 19 . 3 . 5 6 6 19 Heat Transferred 63196 | 25 475 . . . 6771 333 2479 4132 . 1628 4096 4400 1650 1750 650 1300 2250 400 2700 450 5296 1918 4910 . 3394 . 2140 1406 1739 6904 Parts Sabotaged 2 | . . . . . . . . . . . 2 . . . . . . . . . . . . . . . . . . . Parts Stolen . | . . . . . . . . . . . . . . . . . . . . . . . . . . . . . . . Parts Stripped . | . . . . . . . . . . . . . . . . . . . . . . . . . . . . . . . Power Chain Reactions 1 | . . . . . . . . . . . 1 . . . . . . . . . . . . . . . . . . . Alert | -11 -10 -10 -10 -9 -8 -8 -8 -8 -7 -7 -6 -6 -6 -6 -6 -5 -5 -5 -5 -4 -4 -4 -4 -3 -3 -2 -2 -2 -2 -1 ------- Run | Yrd Mat Min Exi Min Mat Gar Mat Gar Fac DSF Fac Ext Cet Arc Hub Fac Gar Fac Gar Fac Gar Fac Gar Res Gar Res Gar Res Gar Acc Maximum Alert Level 5 | . . . . . 1 1 2 3 2 2 2 3 2 1 1 3 4 3 3 2 5 4 5 3 5 4 4 3 5 5 Low Security (%) 22 | 100 100 100 . 100 62 40 31 4 . . 17 45 . 63 95 35 . . . . . . . . . . . . . . Level 1 15 | . . . . . 37 59 58 16 . 10 75 29 . 36 4 21 . 38 24 12 . . . . . . . . . . Level 2 14 | . . . . . . . 10 31 100 89 7 16 100 . . 38 38 28 44 87 1 . 20 . 1 . . 38 19 . Level 3 17 | . . . . . . . . 47 . . . 8 . . . 5 21 32 31 . 25 80 27 100 15 6 43 61 12 2 Level 4 13 | . . . . . . . . . . . . . . . . . 39 . . . 23 19 43 . 29 93 56 . 30 18 Level 5 13 | . . . . . . . . . . . . . . . . . . . . . 48 . 8 . 52 . . . 37 41 High Security 2 | . . . . . . . . . . . . . . . . . . . . . . . . . . . . . . 36 Max Security . | . . . . . . . . . . . . . . . . . . . . . . . . . . . . . . . Sterilizations 1 | . . . . . . . . . . 1 . . . . . . . . . . . . . . . . . . . . Peak Influence 2672 | 5 134 39 . 33 397 298 419 1075 564 669 481 990 624 384 292 772 1462 767 914 479 2234 1289 1716 965 2672 1503 1359 766 1910 2292 Initial 1503 | . . 39 . . . 161 144 161 564 394 350 231 552 206 . 137 536 767 236 479 277 1172 620 965 678 1503 824 764 538 1145 Average 794 | . 44 2 . 2 151 229 245 635 564 477 300 302 578 150 46 349 928 569 580 428 1568 946 1147 935 1657 1178 1161 708 1311 1735 Influence Increases 21249 | 5 364 10 . 64 1002 137 500 984 . 315 855 1453 333 268 398 1459 1046 96 788 67 2067 810 1206 . 2184 6 765 298 1552 2217 Destroy 0b10 Robot/C 9720 | . 200 . . 40 680 40 320 460 . 200 560 620 160 80 120 520 500 60 380 40 780 320 720 . 800 . 320 160 620 1020 Destroy 0b10 Robot/NC 385 | 5 20 10 . 5 70 . 40 . . . 50 35 10 30 10 . . . . . 30 25 10 . 5 . . 5 . 25 Destroy Leader 1322 | . 30 . . 10 182 . 66 20 . 40 106 94 . . 40 120 30 10 30 10 40 60 70 . 80 . 20 50 50 164 Allied During Kill 4024 | . . . . 9 5 . 30 3 . 15 6 589 140 110 170 561 113 . 29 5 477 323 36 . 271 . 92 41 396 603 Successful Hack 291 | . 20 . . . 17 . . 16 . . 26 40 . . . 70 10 . 14 . . . . . 16 . 21 . 14 27 Select Force Hacks 50 | . . . . . . . . . . . . . . . 50 . . . . . . . . . . . . . . . Disable Machine 705 | . 45 . . . 30 . 30 . . 15 15 15 15 45 . 30 45 . 45 . 75 30 30 . 90 . 75 . 60 15 Anti-Garrison Action 2350 | . . . . . . 50 . 350 . . . . . . . . 150 . 150 . 450 . 200 . 600 . 100 . 300 . Destroy Structure 2042 | . 19 . . . 3 47 14 75 . 45 77 30 8 3 8 128 198 26 65 12 215 52 110 . 307 6 137 42 97 318 Lose Combat Pursuer 360 | . 30 . . . 15 . . 60 . . 15 30 . . . 30 . . 75 . . . 30 . 15 . . . 15 45 Influence Decreases 19117 | 5 262 112 . 64 754 87 550 157 511 210 1051 940 804 783 116 975 350 1220 212 585 229 2158 376 811 417 1579 505 939 360 1995 Entered New Map 9392 | . . 63 . . . 87 154 87 511 170 319 242 434 309 . 145 230 695 102 435 119 1062 266 751 227 1169 275 595 180 765 Time Decay 4791 | 5 232 49 . 35 554 . 206 . . . 522 538 190 474 116 270 . 230 . 150 . 356 . 60 . 110 . 254 . 440 Lost Part 530 | . 30 . . . 30 . . 30 . 40 40 . 20 . . . . 20 10 . . 10 50 . 10 . 10 . . 230 Lost Ally 2329 | . . . . 29 20 . 40 40 . . 20 160 160 . . 110 120 . 100 . 110 280 60 . 180 . 220 90 180 410 Purge Threat 2075 | . . . . . 150 . 150 . . . 150 . . . . 450 . 275 . . . 450 . . . 300 . . . 150 Squads Dispatched 75 | . . . . . 8 . 3 . . 1 7 6 . . 1 7 . 2 . . . 6 . . . . . 1 . 33 Investigation 13 | . . . . . 2 . 1 . . . 1 6 . . 1 . . 1 . . . 1 . . . . . . . . Extermination 10 | . . . . . . . . . . . 3 . . . . 1 . 1 . . . 2 . . . . . 1 . 2 Reinforcement 23 | . . . . . 6 . 2 . . 1 3 . . . . 4 . . . . . 3 . . . . . . . 4 Assault 28 | . . . . . . . . . . . . . . . . 1 . . . . . . . . . . . . . 27 Garrison 1 | . . . . . . . . . . . . . . . . 1 . . . . . . . . . . . . . . Intercept . | . . . . . . . . . . . . . . . . . . . . . . . . . . . . . . . Searches Triggered . | . . . . . . . . . . . . . . . . . . . . . . . . . . . . . . . Construction Impeded 3 | . . . . . . . 1 . . . 1 . . . . . . . . . . 1 . . . . . . . . Haulers Reinforced 1 | . . . . . . . . . . . . . . . . . . . . . . . . . . . . . . 1 Active Scanning Responses . | . . . . . . . . . . . . . . . . . . . . . . . . . . . . . . . Cargo Convoy Interrupts 1 | . . . . . . . . . . . 1 . . . . . . . . . . . . . . . . . . . Alert ID Control Effect 34 | . . . . . . . . . . . . . . . . . . . . . . . . . 2 . 11 3 11 7 Stealth | -11 -10 -10 -10 -9 -8 -8 -8 -8 -7 -7 -6 -6 -6 -6 -6 -5 -5 -5 -5 -4 -4 -4 -4 -3 -3 -2 -2 -2 -2 -1 --------- Run | Yrd Mat Min Exi Min Mat Gar Mat Gar Fac DSF Fac Ext Cet Arc Hub Fac Gar Fac Gar Fac Gar Fac Gar Res Gar Res Gar Res Gar Acc Distress Signals 21 | . . . . . 5 . 1 . . . 1 5 1 . 1 1 . . . . 2 1 . . . . . 1 . 2 Communications Jammed 156 | . . . . . . . . . . . . . . . . . . . . . . 1 . . . . . 27 . 128 Distress Signals 150 | . . . . . . . . . . . . . . . . . . . . . . . . . . . . 27 . 123 Times Spotted 676 | . 14 . . 3 45 2 22 29 . 12 42 39 10 8 4 27 25 4 31 3 49 21 35 . 45 . 29 22 57 98 Peak Tracking Total 16 | . 3 . . 3 6 2 4 3 . 3 8 4 5 1 2 6 5 3 6 2 8 5 4 . 4 . 8 4 8 16 Tactical Retreats 18 | . 1 . . . 1 . . 2 . . 1 2 . . . 2 . . 3 . . . 2 . 1 . . . 1 2 Traps | -11 -10 -10 -10 -9 -8 -8 -8 -8 -7 -7 -6 -6 -6 -6 -6 -5 -5 -5 -5 -4 -4 -4 -4 -3 -3 -2 -2 -2 -2 -1 ------- Run | Yrd Mat Min Exi Min Mat Gar Mat Gar Fac DSF Fac Ext Cet Arc Hub Fac Gar Fac Gar Fac Gar Fac Gar Res Gar Res Gar Res Gar Acc Traps Triggered 36 | . . . . . 1 2 . 5 . 2 4 1 . . . . 1 3 4 . 1 . 4 . 2 . . . 2 4 Indirectly . | . . . . . . . . . . . . . . . . . . . . . . . . . . . . . . . Trap Hack Attempts . | . . . . . . . . . . . . . . . . . . . . . . . . . . . . . . . Triggered . | . . . . . . . . . . . . . . . . . . . . . . . . . . . . . . . Disarmed . | . . . . . . . . . . . . . . . . . . . . . . . . . . . . . . . Reprogrammed . | . . . . . . . . . . . . . . . . . . . . . . . . . . . . . . . Reused . | . . . . . . . . . . . . . . . . . . . . . . . . . . . . . . . Traps Extracted . | . . . . . . . . . . . . . . . . . . . . . . . . . . . . . . . Installed . | . . . . . . . . . . . . . . . . . . . . . . . . . . . . . . . Triggered . | . . . . . . . . . . . . . . . . . . . . . . . . . . . . . . . Most Traps Carried 3 | . . . . 3 3 2 2 2 . . . . . . . . . . . . . . . . . . . . . . Machines | -11 -10 -10 -10 -9 -8 -8 -8 -8 -7 -7 -6 -6 -6 -6 -6 -5 -5 -5 -5 -4 -4 -4 -4 -3 -3 -2 -2 -2 -2 -1 ---------- Run | Yrd Mat Min Exi Min Mat Gar Mat Gar Fac DSF Fac Ext Cet Arc Hub Fac Gar Fac Gar Fac Gar Fac Gar Res Gar Res Gar Res Gar Acc Machines Disabled 79 | . 4 . . . 2 2 2 3 . 1 1 2 1 3 . 2 6 . 7 . 11 2 4 . 10 . 7 . 8 1 Max in Single Turn 3 | . 3 . . . 1 2 1 1 . 1 1 1 1 1 . 1 1 . 1 . 2 1 1 . 1 . 2 . 1 . Garrison Access 1 | . . . . . . . . . . . . . . . . . . . . . . . . . . . . . . 1 Garrison Relay 25 | . . . . . . . . 3 . . . . . . . . 2 . 3 . 5 . 2 . 4 . 2 . 4 . Phase Generator 3 | . . . . . . 1 . . . . . . . . . . 1 . . . 1 . . . . . . . . . Network Hub 1 | . . . . . . . . . . . . . . . 1 . . . . . . . . . . . . . . . Machines Repaired . | . . . . . . . . . . . . . . . . . . . . . . . . . . . . . . . Machines Dismantled . | . . . . . . . . . . . . . . . . . . . . . . . . . . . . . . . Machines Sabotaged 1 | . . . . . . . . . . . . . . . 1 . . . . . . . . . . . . . . . Overloaded Fab Kills . | . . . . . . . . . . . . . . . . . . . . . . . . . . . . . . . Hacking | -11 -10 -10 -10 -9 -8 -8 -8 -8 -7 -7 -6 -6 -6 -6 -6 -5 -5 -5 -5 -4 -4 -4 -4 -3 -3 -2 -2 -2 -2 -1 --------- Run | Yrd Mat Min Exi Min Mat Gar Mat Gar Fac DSF Fac Ext Cet Arc Hub Fac Gar Fac Gar Fac Gar Fac Gar Res Gar Res Gar Res Gar Acc Machines Accessed 77 | . 2 . 2 . 7 . 3 2 1 . 8 10 1 . 1 8 3 3 3 2 2 2 2 1 3 4 2 2 1 2 Terminals 55 | . 2 . . . 3 . 1 2 1 . 7 10 1 . 1 4 3 2 3 . 2 1 2 . 3 2 2 1 1 1 Fabricators 1 | . . . . . . . . . . . . . . . . 1 . . . . . . . . . . . . . . Repair Stations 3 | . . . . . 2 . 1 . . . . . . . . . . . . . . . . . . . . . . . Recycling Units 2 | . . . . . . . . . . . . . . . . . . . . 1 . . . . . 1 . . . . Scanalyzers 4 | . . . . . 1 . . . . . 1 . . . . 2 . . . . . . . . . . . . . . Garrison Access 10 | . . . . . 1 . 1 . . . . . . . . 1 . 1 . 1 . 1 . 1 . 1 . 1 . 1 Total Hacks 197 | . 9 . 2 . 17 . 7 4 4 . 14 25 1 . 1 42 6 5 6 3 3 7 5 2 8 11 7 2 2 4 Successful 77 | . 6 . 2 . 11 . 3 1 1 . 3 9 . . 1 20 1 1 1 1 . 2 . 2 1 5 2 1 1 2 Failed 120 | . 3 . . . 6 . 4 3 3 . 11 16 1 . . 22 5 4 5 2 3 5 5 . 7 6 5 1 1 2 Catastrophic 27 | . . . . . . . 2 . . . 3 2 1 . . 3 . 2 . 1 2 2 2 . 2 1 2 1 . 1 Database Lockouts . | . . . . . . . . . . . . . . . . . . . . . . . . . . . . . . . Manual 49 | . 2 . 1 . 2 . 6 . . . 4 5 1 . 1 12 . 3 . . . . . . 2 8 . . . 2 Terminals 150 | . 9 . . . 8 . 4 4 4 . 13 25 1 . 1 21 6 4 6 . 3 6 5 . 8 9 7 1 2 3 Fabricators 5 | . . . . . . . . . . . . . . . . 5 . . . . . . . . . . . . . . Repair Stations 7 | . . . . . 5 . 2 . . . . . . . . . . . . . . . . . . . . . . . Recycling Units 3 | . . . . . . . . . . . . . . . . . . . . 2 . . . . . 1 . . . . Scanalyzers 19 | . . . . . 3 . . . . . 1 . . . . 15 . . . . . . . . . . . . . . Garrison Access 11 | . . . . . 1 . 1 . . . . . . . . 1 . 1 . 1 . 1 . 2 . 1 . 1 . 1 Terminal Hacks 41 | . 5 . 2 . 3 . 1 1 1 . 2 8 . . . 8 1 . 1 . . 1 . . 1 2 2 . 1 1 Record 1 | . . . 1 . . . . . . . . . . . . . . . . . . . . . . . . . . . Part Schematic 2 | . . . . . . . . . . . . 1 . . . 1 . . . . . . . . . . . . . . Prototype ID Bank 1 | . . . . . . . . . . . . . . . . 1 . . . . . . . . . . . . . . Open Door 9 | . . . . . . . . . . . 1 7 . . . . . . . . . . . . . . 1 . . . Open DSF 1 | . . . . . . . . . 1 . . . . . . . . . . . . . . . . . . . . . Level Access Points 1 | . . . . . . . . . . . . . . . . . . . . . . . . . . . . . . 1 Branch Access Points 2 | . 1 . . . . . . . . . . . . . . 1 . . . . . . . . . . . . . . Emergency Access Points 3 | . 1 . . . . . . . . . . . . . . . . . . . . . . . . . 1 . 1 . Unreport Threat 7 | . . . . . 1 . 1 . . . . . . . . 3 . . . . . . . . . 2 . . . . Locate Traps 1 | . 1 . . . . . . . . . . . . . . . . . . . . . . . . . . . . . Maintenance Status 1 | . . . . . . . . . . . 1 . . . . . . . . . . . . . . . . . . . Recall Assault 1 | . . . . . . . . . . . . . . . . 1 . . . . . . . . . . . . . . Hauler Manifests 3 | . 1 . . . 2 . . . . . . . . . . . . . . . . . . . . . . . . . Zone Layout 3 | . 1 . . . . . . . . . . . . . . 1 . . . . . 1 . . . . . . . . Garrison Registry 1 | . . . . . . . . . . . . . . . . . 1 . . . . . . . . . . . . . Patrol Navigation 1 | . . . . . . . . . . . . . . . . . . . 1 . . . . . . . . . . . Security Stations 2 | . . . . . . . . 1 . . . . . . . . . . . . . . . . 1 . . . . . Proto ID Catalog 1 | . . . 1 . . . . . . . . . . . . . . . . . . . . . . . . . . . Fabricator Hacks 1 | . . . . . . . . . . . . . . . . 1 . . . . . . . . . . . . . . Network Status 1 | . . . . . . . . . . . . . . . . 1 . . . . . . . . . . . . . . Repair Station Hacks 3 | . . . . . 3 . . . . . . . . . . . . . . . . . . . . . . . . . Scan Component 2 | . . . . . 2 . . . . . . . . . . . . . . . . . . . . . . . . . Repair 1 | . . . . . 1 . . . . . . . . . . . . . . . . . . . . . . . . . Recycling Unit Hacks 1 | . . . . . . . . . . . . . . . . . . . . . . . . . . 1 . . . . Retrieve Components 1 | . . . . . . . . . . . . . . . . . . . . . . . . . . 1 . . . . Scanalyzer 9 | . . . . . 3 . . . . . . . . . . 6 . . . . . . . . . . . . . . Insert Component 5 | . . . . . 1 . . . . . . . . . . 4 . . . . . . . . . . . . . . Analyze 4 | . . . . . 2 . . . . . . . . . . 2 . . . . . . . . . . . . . . Garrison Access Hacks 11 | . . . . . 1 . 1 . . . . . . . . 1 . 1 . 1 . 1 . 2 . 1 . 1 . 1 Unlock Access 9 | . . . . . 1 . 1 . . . . . . . . 1 . 1 . 1 . 1 . 1 . 1 . 1 . . Seal Access 1 | . . . . . . . . . . . . . . . . . . . . . . . . . . . . . . 1 Coupler Status 1 | . . . . . . . . . . . . . . . . . . . . . . . . 1 . . . . . . Unauthorized Hacks 11 | . 1 . . . 1 . 1 . . . 1 1 . . 1 4 . . . . . . . . . 1 . . . . Terminals 8 | . 1 . . . . . . . . . 1 1 . . 1 3 . . . . . . . . . 1 . . . . Botnet 5 | . . . . . . . . . . . 1 1 . . . 2 . . . . . . . . . 1 . . . . Operators 1 | . . . . . . . . . . . . . . . . 1 . . . . . . . . . . . . . . Skim 1 | . 1 . . . . . . . . . . . . . . . . . . . . . . . . . . . . . Sabotage 1 | . . . . . . . . . . . . . . . 1 . . . . . . . . . . . . . . . Fabricators 1 | . . . . . . . . . . . . . . . . 1 . . . . . . . . . . . . . . Haulers 1 | . . . . . . . . . . . . . . . . 1 . . . . . . . . . . . . . . Repair Stations 2 | . . . . . 1 . 1 . . . . . . . . . . . . . . . . . . . . . . . Patch 2 | . . . . . 1 . 1 . . . . . . . . . . . . . . . . . . . . . . . Recycling Units . | . . . . . . . . . . . . . . . . . . . . . . . . . . . . . . . Scanalyzers . | . . . . . . . . . . . . . . . . . . . . . . . . . . . . . . . Garrison Access . | . . . . . . . . . . . . . . . . . . . . . . . . . . . . . . . Data Cores Recovered 1 | . . . . . . . . . . . 1 . . . . . . . . . . . . . . . . . . . Used . | . . . . . . . . . . . . . . . . . . . . . . . . . . . . . . . Hacking Detections 61 | . 1 . . . 5 . 1 2 1 . 8 8 1 . . 8 2 3 3 1 2 1 2 1 3 2 2 2 1 1 Full Trace Events 7 | . . . . . 1 . . . . . 1 5 . . . . . . . . . . . . . . . . . . Feedback Events . | . . . . . . . . . . . . . . . . . . . . . . . . . . . . . . . Feedback Blocked . | . . . . . . . . . . . . . . . . . . . . . . . . . . . . . . . Robot Schematics Acquired . | . . . . . . . . . . . . . . . . . . . . . . . . . . . . . . . Robots Built . | . . . . . . . . . . . . . . . . . . . . . . . . . . . . . . . Authchips . | . . . . . . . . . . . . . . . . . . . . . . . . . . . . . . . Time . | . . . . . . . . . . . . . . . . . . . . . . . . . . . . . . . Total Robot Build Rating . | . . . . . . . . . . . . . . . . . . . . . . . . . . . . . . . Part Schematics Acquired 5 | . . . . . 1 . . . . . . 1 . . . 3 . . . . . . . . . . . . . . Parts Built . | . . . . . . . . . . . . . . . . . . . . . . . . . . . . . . . Authchips . | . . . . . . . . . . . . . . . . . . . . . . . . . . . . . . . Time . | . . . . . . . . . . . . . . . . . . . . . . . . . . . . . . . Total Part Build Rating . | . . . . . . . . . . . . . . . . . . . . . . . . . . . . . . . Parts Repaired 1 | . . . . . 1 . . . . . . . . . . . . . . . . . . . . . . . . . Time 44 | . . . . . 44 . . . . . . . . . . . . . . . . . . . . . . . . . Parts Recycled . | . . . . . . . . . . . . . . . . . . . . . . . . . . . . . . . Recycled Matter . | . . . . . . . . . . . . . . . . . . . . . . . . . . . . . . . Retrieved Matter . | . . . . . . . . . . . . . . . . . . . . . . . . . . . . . . . Retrieved Components 3 | . . . . . . . . . . . . . . . . . . . . . . . . . . 3 . . . . Parts Scanalyzed 4 | . . . . . 1 . . . . . . . . . . 3 . . . . . . . . . . . . . . Part Schematics Acquired 3 | . . . . . 1 . . . . . . . . . . 2 . . . . . . . . . . . . . . Parts Damaged . | . . . . . . . . . . . . . . . . . . . . . . . . . . . . . . . Bothacking | -11 -10 -10 -10 -9 -8 -8 -8 -8 -7 -7 -6 -6 -6 -6 -6 -5 -5 -5 -5 -4 -4 -4 -4 -3 -3 -2 -2 -2 -2 -1 ------------ Run | Yrd Mat Min Exi Min Mat Gar Mat Gar Fac DSF Fac Ext Cet Arc Hub Fac Gar Fac Gar Fac Gar Fac Gar Res Gar Res Gar Res Gar Acc Used RIF Installer 10 | . . . . . . 1 . 1 . . . . . . . . 1 . 1 . 1 . 2 . 1 . 1 . 1 . Coupler Efficiency 2 | . . . . . . . . . . . . . . . . . 1 . . . . . . . . . 1 . . . Zone Cloak 1 | . . . . . . . . . . . . . . . . . . . 1 . . . . . . . . . . . Watcher Feeds 1 | . . . . . . . . 1 . . . . . . . . . . . . . . . . . . . . . . Patrol Navigation 1 | . . . . . . . . . . . . . . . . . . . . . . . . . . . . . 1 . Alert ID Control 1 | . . . . . . . . . . . . . . . . . . . . . 1 . . . . . . . . . Structural Interface 1 | . . . . . . . . . . . . . . . . . . . . . . . 1 . . . . . . . Autooverride 2 | . . . . . . . . . . . . . . . . . . . . . . . 1 . 1 . . . . . Robots Hacked 140 | . . . . . . . . 5 . 3 5 2 . . . 2 . 2 12 2 12 8 2 . 9 1 20 5 26 24 Non-combat 23 | . . . . . . . . . . . 5 . . . . 2 . 2 . 1 . 1 . . . 1 1 4 . 6 Combat 117 | . . . . . . . . 5 . 3 . 2 . . . . . . 12 1 12 7 2 . 9 . 19 1 26 18 Autooverrided 16 | . . . . . . . . . . . . . . . . . . . . . . . . . . . 7 . 7 2 Robot Hacks Applied 143 | . . . . . . . . 6 . 3 6 2 . . . 2 . 4 12 2 13 12 2 . 10 1 16 7 21 24 parse_system 7 | . . . . . . . . 1 . . . . . . . . . . . . 1 . . . . . 1 . 2 2 drop_inventory 2 | . . . . . . . . . . . 1 . . . . . . . . . . . . . . 1 . . . . locate_stockpiles 1 | . . . . . . . . . . . 1 . . . . . . . . . . . . . . . . . . . purge_threat 8 | . . . . . . . . . . . 1 . . . . . . 2 . . . 4 . . . . . . . 1 recall_investigation 1 | . . . . . . . . . . . . . . . . . . 1 . . . . . . . . . . . . clear_recycling 1 | . . . . . . . . . . . . . . . . . . . . . . 1 . . . . . . . . reboot_propulsion 1 | . . . . . . . . . . . . . . . . . . . . . 1 . . . . . . . . . scatter_targeting 1 | . . . . . . . . . . . . . . . . . . . . . . . . . 1 . . . . . overload_power 1 | . . . . . . . . . . . . . . . . . . . . . . . . . . . . . . 1 amplify_resonance 21 | . . . . . . . . 1 . . 1 . . . . 2 . . 2 . 1 . . . . . 2 4 4 4 disable_weapons 5 | . . . . . . . . . . 1 . . . . . . . . . . 1 1 . . . . . . 2 . overwrite_iff 38 | . . . . . . . . 2 . . . . . . . . . . 5 . 5 5 . . 3 . 5 1 5 7 streamctrl_low 4 | . . . . . . . . . . . 2 . . . . . . 1 . . . . . . . . . . . 1 formatsys_low 5 | . . . . . . . . . . . . . . . . . . . . 1 . . . . . . 1 1 . 2 formatsys_high 47 | . . . . . . . . 2 . 2 . 2 . . . . . . 5 1 4 1 2 . 6 . 7 1 8 6 Relay Couplers Released 100 | . . . . . . . . 11 . . . . . . . . 10 . 12 . 22 . 9 . 15 . 8 . 13 . Machine Destruction 100 | . . . . . . . . 11 . . . . . . . . 10 . 12 . 22 . 9 . 15 . 8 . 13 . Attached 55 | . . . . . . . . 3 . 2 1 1 . . . 1 1 1 5 2 4 2 3 1 8 . 6 . 11 3 Fabnet Peak Effective % . | . . . . . . . . . . . . . . . . . . . . . . . . . . . . . . . Robots Rewired 38 | . . . . . . 3 . . . . . 10 . . . . 2 . . . 10 . . . 5 . . . 8 . Allies Hacked 4 | . . . . . . . . . . . . . . . . . . . . . . . . . . . 2 . . 2 Hacks Repelled . | . . . . . . . . . . . . . . . . . . . . . . . . . . . . . . . Allies | -11 -10 -10 -10 -9 -8 -8 -8 -8 -7 -7 -6 -6 -6 -6 -6 -5 -5 -5 -5 -4 -4 -4 -4 -3 -3 -2 -2 -2 -2 -1 -------- Run | Yrd Mat Min Exi Min Mat Gar Mat Gar Fac DSF Fac Ext Cet Arc Hub Fac Gar Fac Gar Fac Gar Fac Gar Res Gar Res Gar Res Gar Acc Total Allies 171 | . . . . 5 . 3 . 4 . 2 2 21 5 . . . 4 1 11 2 21 6 2 . 16 . 20 1 28 17 Largest Group 15 | . . . . 5 1 2 3 2 . 2 2 14 11 8 7 7 3 1 3 5 15 14 3 . 9 6 8 5 13 14 Highest-Rated Group 829 | . . . . 85 16 48 72 30 . 126 90 498 698 698 539 520 208 23 128 190 727 645 98 . 570 371 464 297 803 829 Highest-Rated Ally 159 | . . . . 31 16 24 24 16 . 90 90 159 159 159 96 96 96 23 49 49 68 68 49 . 109 96 96 69 148 89 Total Orders 63 | . . . . . . . . . . . 1 2 . . 2 15 7 6 2 3 4 . 4 . . . 10 6 . 1 STAY 21 | . . . . . . . . . . . . 1 . . 1 . 1 2 1 1 3 . 3 . . . 5 3 . . FOLLOW 15 | . . . . . . . . . . . . 1 . . 1 2 1 2 1 1 1 . 1 . . . 3 1 . . AID 9 | . . . . . . . . . . . 1 . . . . . . 2 . 1 . . . . . . 2 2 . 1 EXPLORE 13 | . . . . . . . . . . . . . . . . 8 5 . . . . . . . . . . . . . RETURN 5 | . . . . . . . . . . . . . . . . 5 . . . . . . . . . . . . . . Ally Attacks 991 | . . . . 22 8 . 40 8 . 13 7 90 41 17 6 100 27 . 34 2 72 63 6 . 58 . 64 30 126 157 Total Damage 30716 | . . . . 277 86 . 604 134 . 441 320 1674 945 433 210 3242 1068 . 1044 . 3353 2395 241 . 1574 . 2301 922 4238 5214 Kills 175 | . . . . 1 1 . 7 . . 3 2 14 5 3 3 16 8 . 7 . 18 12 1 . 8 . 14 4 26 22 Allies Corrupted 9 | . . . . 3 . . . . . . . . . . . 1 1 . . . . . . . 1 . 1 . . 2 Allies Melted 5 | . . . . . . . . . . . . . . . . . . . . . 2 . 1 . 1 . 1 . . . Intel | -11 -10 -10 -10 -9 -8 -8 -8 -8 -7 -7 -6 -6 -6 -6 -6 -5 -5 -5 -5 -4 -4 -4 -4 -3 -3 -2 -2 -2 -2 -1 ------- Run | Yrd Mat Min Exi Min Mat Gar Mat Gar Fac DSF Fac Ext Cet Arc Hub Fac Gar Fac Gar Fac Gar Fac Gar Res Gar Res Gar Res Gar Acc Active Infowar (turns) 19207 | 10 195 . . . 121 110 . . . . 366 1536 394 1259 344 594 504 490 1106 311 2054 819 1348 134 2269 236 1145 550 1603 1709 Optics 18738 | . . . . . . . . . . . 366 1536 394 1259 344 594 504 490 1106 311 2054 819 1348 134 2269 236 1145 550 1603 1676 IFF 1 | . . . . . . . . . . . . . . . . . . . . . . . . 1 . . . . . . Terrain 119 | . . . . . 119 . . . . . . . . . . . . . . . . . . . . . . . . . Seismic 436 | 10 195 . . . 121 110 . . . . . . . . . . . . . . . . . . . . . . . . Jamming 3265 | . . . . . . . . . . . . . . . . . . . . . . 189 316 129 5 235 260 394 179 1558 Robot Analysis Total . | . . . . . . . . . . . . . . . . . . . . . . . . . . . . . . . Derelict Logs Recovered 2 | . . 1 . 1 . . . . . . . . . . . . . . . . . . . . . . . . . . Drone Launches 9 | . . . . . . . . . . . . . . . . 7 2 . . . . . . . . . . . . . Drone Recoveries 5 | . . . . . . . . . . . . . . . . 5 . . . . . . . . . . . . . . Exploration | -11 -10 -10 -10 -9 -8 -8 -8 -8 -7 -7 -6 -6 -6 -6 -6 -5 -5 -5 -5 -4 -4 -4 -4 -3 -3 -2 -2 -2 -2 -1 ------------- Run | Yrd Mat Min Exi Min Mat Gar Mat Gar Fac DSF Fac Ext Cet Arc Hub Fac Gar Fac Gar Fac Gar Fac Gar Res Gar Res Gar Res Gar Acc Turns Passed 27378 | 66 591 1072 364 424 2039 267 430 1918 12 337 1446 1536 394 1259 344 594 504 490 1106 311 2054 819 1348 134 2269 236 1145 550 1603 1716 Spaces Moved 11550 | 44 314 144 265 280 640 75 120 555 6 94 588 815 251 86 260 404 266 363 665 223 977 364 576 76 933 137 531 251 724 523 Core 118 | 23 80 . . . . . . . . . . . . . . . . . . . . . . . . . . . . 15 Treads 5060 | 21 6 . . . 43 . . . . . . . . . . . . . . . 890 364 576 76 933 137 531 251 724 508 Legs 5351 | . . . . . 493 75 120 555 6 94 588 815 251 86 260 404 266 363 665 223 87 . . . . . . . . . Wheels 1021 | . 228 144 265 280 104 . . . . . . . . . . . . . . . . . . . . . . . . . Hover . | . . . . . . . . . . . . . . . . . . . . . . . . . . . . . . . Flight . | . . . . . . . . . . . . . . . . . . . . . . . . . . . . . . . Fastest Speed 50 | 50 50 135 135 135 123 266 266 262 187 187 112 112 112 112 112 112 112 112 112 116 116 160 160 160 160 160 160 160 160 50 Average Speed 158 | 102 121 135 135 135 236 266 268 263 187 229 185 112 112 112 112 114 112 112 113 116 156 160 160 160 160 160 160 160 161 206 Slowest Speed 400 | 160 175 135 135 135 345 266 270 270 187 330 400 112 112 112 112 185 185 112 116 116 240 160 160 160 160 160 160 160 163 250 Overloaded Moves . | . . . . . . . . . . . . . . . . . . . . . . . . . . . . . . . Propulsion Burnouts . | . . . . . . . . . . . . . . . . . . . . . . . . . . . . . . . Robots Hopped . | . . . . . . . . . . . . . . . . . . . . . . . . . . . . . . . Potential Cave-ins . | . . . . . . . . . . . . . . . . . . . . . . . . . . . . . . . Cave-ins Triggered . | . . . . . . . . . . . . . . . . . . . . . . . . . . . . . . . Exploration Rate (%) 44 | 4 45 20 68 53 74 17 23 69 1 79 20 82 73 81 25 23 55 22 70 6 94 17 56 5 93 7 59 16 85 22 Regions Visited 30 Branch Regions 7 Pre-discovered Areas 2 | . . 1 1 . . . . . . . . . . . . . . . . . . . . . . . . . . . Known Exits Taken 12 | . 1 . . 1 1 . 1 . 1 . . . . . . 1 . 1 . 1 . 1 . 1 . 1 . 1 . . Unknown Exits Taken 8 | 1 . 1 1 . . . . . . . 1 1 1 1 1 . . . . . . . . . . . . . . . Scrap Searched . | . . . . . . . . . . . . . . . . . . . . . . . . . . . . . . . Spaces Dug 65 | . . . . . . . . . . . 6 . . . 6 2 . 7 3 1 . 5 . . . 2 . 11 17 5 Terrain Destroyed 1080 | . 16 . . . . 64 12 20 . 50 124 18 7 3 9 38 131 12 5 6 132 22 37 . 163 2 55 14 36 104 Melee 6 | . . . . . . . . . . . 6 . . . . . . . . . . . . . . . . . . . Projectile 175 | . . . . . . . . . . . 1 18 7 3 9 20 6 12 5 6 10 22 3 . 2 2 8 14 10 17 AOE 899 | . 16 . . . . 64 12 20 . 50 117 . . . . 18 125 . . . 122 . 34 . 161 . 47 . 26 87 Terrain Rammed . | . . . . . . . . . . . . . . . . . . . . . . . . . . . . . . . Walls Destroyed . | . . . . . . . . . . . . . . . . . . . . . . . . . . . . . . . Machines Disabled . | . . . . . . . . . . . . . . . . . . . . . . . . . . . . . . . Actions | -11 -10 -10 -10 -9 -8 -8 -8 -8 -7 -7 -6 -6 -6 -6 -6 -5 -5 -5 -5 -4 -4 -4 -4 -3 -3 -2 -2 -2 -2 -1 --------- Run | Yrd Mat Min Exi Min Mat Gar Mat Gar Fac DSF Fac Ext Cet Arc Hub Fac Gar Fac Gar Fac Gar Fac Gar Res Gar Res Gar Res Gar Acc Total 18369 | 59 441 1016 273 324 986 111 171 827 7 174 800 1285 330 1219 292 492 398 421 888 260 1353 536 843 88 1543 152 750 343 1091 896 Wait 3850 | . 48 864 . 35 136 4 9 68 . 13 59 166 34 1108 17 32 50 24 66 18 131 89 114 . 366 6 89 40 149 115 Move 11526 | 43 313 143 264 279 640 74 120 554 5 93 587 814 250 85 259 404 265 363 664 222 976 364 575 76 931 136 530 251 723 523 Hop . | . . . . . . . . . . . . . . . . . . . . . . . . . . . . . . . Pick Up 268 | 3 23 4 4 3 37 . 3 19 . 9 13 6 9 3 . 2 5 4 12 3 11 7 21 2 17 3 14 1 15 15 Fast Attach 127 | 4 2 . . 1 15 1 2 . . 6 16 2 3 2 . 5 3 . 3 . 8 4 4 3 7 . 9 2 14 11 Attach 106 | 4 4 . . . 11 . . 5 1 3 4 1 2 . . 2 2 3 6 3 3 4 7 1 11 2 2 . 4 21 Detach 23 | 3 1 . . . 3 . . . . 1 1 . . . . 2 . . . . 2 . 2 . 4 . 1 1 . 2 Swap 273 | . 3 . 1 . 11 3 5 22 1 7 17 6 3 1 3 10 9 5 20 5 18 11 20 2 22 1 20 6 14 27 Drop 310 | . . 1 4 4 44 . 6 16 . 11 24 10 11 6 . 9 6 2 14 1 21 10 15 4 22 1 23 2 28 15 Fire 1323 | 2 46 4 . 1 88 19 26 124 . 26 66 51 18 14 13 24 36 19 92 8 91 46 85 . 102 3 61 40 56 162 Melee 45 | . . . . 1 . . . . . . 12 32 . . . . . . . . . . . . . . . . . . Ram 1 | . 1 . . . . . . . . . . . . . . . . . . . . . . . . . . . . . Kick 3 | . . . . . 1 . . . . . 1 . . . . . . 1 . . . . . . . . . . . . Crush 5 | . . . . . . . . . . . . . . . . . . . . . . . . . . . . . 2 3 Escape Stasis 45 | . . . . . . . . 19 . 5 . . . . . . 7 . 9 . 5 . . . . . . . . . Rewire 463 | . . . . . . 10 . . . . . 197 . . . 1 15 . 2 . 87 1 . . 61 . 1 . 86 2 Trap . | . . . . . . . . . . . . . . . . . . . . . . . . . . . . . . . Miscellaneous 1 | . . . . . . . . . . . . . . . . 1 . . . . . . . . . . . . . . Route ------- -11/Scrapyard -10/Materials (discovered 2 exits: [Mat] / *Min) -10/Mines -10/Exiles -9/Mines -8/Materials (discovered 5 exits: *Fac x2 / [*Sto x2] / Gar) -8/Garrison -8/Materials (discovered 2 exits: *Fac / Gar) -8/Garrison (discovered 3 exits: *Fac x2 / [*Mat]) -7/Factory -7/DSF -6/Factory (discovered 3 exits: *Fac / [*Low] / *Ext) -6/Extension (discovered 2 exits: *Fac / *Cet) -6/Cetus (discovered 2 exits: *Fac / [*Arc]) -6/Archives (discovered 3 exits: *Fac / *Hub x2) -6/Hub_04(d) (discovered 2 exits: *Fac x2) -5/Factory (discovered 3 exits: *Upp x2 / Gar) -5/Garrison (discovered 3 exits: *Fac x3) -5/Factory (discovered 2 exits: *Upp / Gar) -5/Garrison (discovered 3 exits: *Fac x3) -4/Factory (discovered 2 exits: [*Upp] / Gar) -4/Garrison (discovered 3 exits: *Fac x3) -4/Factory -4/Garrison -3/Research -3/Garrison (discovered 4 exits: *Res x3 / [*Res]) -2/Research -2/Garrison -2/Research -2/Garrison (discovered 3 exits: *Acc x3) -1/Access (discovered 1 exit: Sur) History --------- Turn | Location | Event 13 | -11/Scrapyard | Discovered new exit (range 15) 67 | -11/Scrapyard | Entered Materials 128 | -10/Materials | Identified exit to Mines 336 | -10/Materials | Build established: Mutant 451 | -10/Materials | Discovered new exit (range 16) 577 | -10/Materials | Core integrity fell below 50% 658 | -10/Materials | Entered Mines 1723 | -10/Mines | Deemed a non-threat by the Exiles lab entrance 1723 | -10/Mines | Discovered new exit (range 5) 1730 | -10/Mines | Entered Exiles 1772 | -10/Exiles | Met 8R-AWN 1792 | -10/Exiles | Met EX-HEX 1843 | -10/Exiles | Met EX-DEC 1866 | -10/Exiles | Learned location of Zion (-7) 1904 | -10/Exiles | Met EX-BIN 1920 | -10/Exiles | Aligned with FarCom system 1921 | -10/Exiles | Given EX-Vault access code 1954 | -10/Exiles | Opened EX-Vault 1964 | -10/Exiles | Found Superbattery 1989 | -10/Exiles | Warned to stay clear of 0b10 Research branches 2010 | -10/Exiles | Exiles lab attacked by MAIN.C 2041 | -10/Exiles | Build established: Scavenger-Mutant 2078 | -10/Exiles | Discovered new exit (range 14) 2094 | -10/Exiles | Left Exiles lab with Superbattery 2094 | -10/Exiles | Entered Mines 2099 | -9/Mines | Met a Derelict bent on vengeance 2112 | -9/Mines | Identified exit to Materials 2128 | -9/Mines | Assisted by bots powering up and referring to "LRC-V3" 2162 | -9/Mines | Found a hidden stash of uninstalled traps 2237 | -9/Mines | Lost 3 allies 2518 | -9/Mines | Entered Materials 2518 | -8/Materials | Accompanied by 1 ally 2518 | -8/Materials | Evolved 4 slots: Propulsion x1, Utility x2, Weapon x1 2855 | -8/Materials | Discovered new exit (range 16) 2941 | -8/Materials | Build established: Scavenger-Skirmisher 2948 | -8/Materials | Lost 3 parts (2u1w) 3422 | -8/Materials | Discovered new exit (range 15) 3521 | -8/Materials | Discovered new exit (range 16) 3669 | -8/Materials | Repaired Imp. Carbon-fiber Leg 4099 | -8/Materials | Discovered new exit (range 10) 4454 | -8/Materials | Core integrity fell below 50% 4557 | -8/Materials | Identified exit to Garrison 4557 | -8/Materials | Entered Garrison 4604 | -8/Garrison | Installed Relay Interface Framework 4666 | -8/Garrison | Phase Generator disabled 4739 | -8/Garrison | Triggered checkpoint 4782 | -8/Garrison | Discovered new exit (range 5) 4824 | -8/Garrison | Entered Materials 4824 | -8/Materials | Accompanied by 3 allies 5176 | -8/Materials | Discovered new exit (range 14) 5253 | -8/Materials | Identified exit to Garrison 5254 | -8/Materials | Entered Garrison 5422 | -8/Garrison | Garrison Relay disabled 5428 | -8/Garrison | Triggered checkpoint 5522 | -8/Garrison | Learned Factory security intel 5755 | -8/Garrison | Triggered checkpoint 5799 | -8/Garrison | Triggered checkpoint 5854 | -8/Garrison | Triggered checkpoint 5894 | -8/Garrison | Triggered checkpoint 6092 | -8/Garrison | Discovered new exit (range 14) 6136 | -8/Garrison | Expanded RIF knowledge: Watcher Feeds 6202 | -8/Garrison | Triggered checkpoint 6231 | -8/Garrison | Garrison Relay disabled 6254 | -8/Garrison | Triggered checkpoint 6328 | -8/Garrison | Discovered new exit (range 5) 6668 | -8/Garrison | Triggered checkpoint 6691 | -8/Garrison | Garrison Relay disabled 6777 | -8/Garrison | Discovered new exit (range 15) 6817 | -8/Garrison | P-60 Hacker assimilated allied Defender 3a 6940 | -8/Garrison | Core integrity fell below 20% 7172 | -8/Garrison | Entered Factory 7172 | -7/Factory | Evolved 2 slots: Propulsion x1, Utility x1 7183 | -7/Factory | Identified exit to DSF 7184 | -7/Factory | Entered DSF 7268 | -7/DSF | Additional patrols routed to DSF 7413 | -7/DSF | Build established: Bothacker-Skirmisher 7445 | -7/DSF | Discovered new exit (range 16) 7495 | -7/DSF | Sterilization system engaged 7515 | -7/DSF | Ambient heat levels rising (+10) 7521 | -7/DSF | Entered Factory 7521 | -6/Factory | Accompanied by 1 ally 7521 | -6/Factory | Evolved 2 slots: Propulsion x1, Utility x1 7799 | -6/Factory | Build established: Scavenger-Skirmisher 8356 | -6/Factory | Discovered new exit (range 15) 8411 | -6/Factory | Discovered new exit (range 7) 8510 | -6/Factory | Cargo convoy interrupted 8554 | -6/Factory | Destroyed 9 combat bots 8555 | -6/Factory | Found PL-3XN's Ring of Power 8556 | -6/Factory | Lost 3 parts (2n1u) 8963 | -6/Factory | Discovered new exit (range 6) 8967 | -6/Factory | Entered Extension 9147 | -6/Extension | Rescued a captive Derelict 9166 | -6/Extension | Rescued a captive Derelict 9411 | -6/Extension | Build established: Commander-Mutant 9462 | -6/Extension | Rescued a captive Derelict 9542 | -6/Extension | Rescued a captive Derelict 9543 | -6/Extension | Rescued a captive Derelict 9901 | -6/Extension | Spotted B-75 Beast 9914 | -6/Extension | Destroyed B-75 Beast 9917 | -6/Extension | Spotted B-75 Beast 9937 | -6/Extension | Destroyed B-75 Beast 10089 | -6/Extension | Rescued a captive Derelict 10259 | -6/Extension | Rescued a captive Derelict 10261 | -6/Extension | Rescued a captive Derelict 10315 | -6/Extension | Core integrity fell below 50% 10325 | -6/Extension | Build established: Commander-Skirmisher 10327 | -6/Extension | Rescued A7 10355 | -6/Extension | Lost 3 allies 10417 | -6/Extension | Rescued a captive Derelict 10464 | -6/Extension | Discovered new exit (range 10) 10465 | -6/Extension | Discovered new exit (range 6) 10503 | -6/Extension | Entered Cetus 10503 | -6/Cetus | Accompanied by 11 allies (A7) 10508 | -6/Cetus | Acquired a Cetus Manufacturing Module code from A7 10515 | -6/Cetus | Spotted Cetus Guard 10515 | -6/Cetus | Spotted Cetus Guard 10515 | -6/Cetus | Spotted Cetus Guard 10515 | -6/Cetus | Spotted Cetus Guard 10523 | -6/Cetus | Destroyed Cetus Guard 10527 | -6/Cetus | Destroyed Cetus Guard 10530 | -6/Cetus | Allies destroyed Cetus Guard 10536 | -6/Cetus | Destroyed Cetus Guard 10560 | -6/Cetus | Lost 3 allies 10601 | -6/Cetus | Escorted A7 to Cetus Mainframe 10611 | -6/Cetus | Started Cetus Manufacturing Module 10622 | -6/Cetus | Discovered new exit (range 22) 10636 | -6/Cetus | Manufactured an Enhanced Grunt 10648 | -6/Cetus | Spotted Cetus Guard 10648 | -6/Cetus | Spotted Cetus Guard 10648 | -6/Cetus | Spotted Cetus Guard 10648 | -6/Cetus | Spotted Cetus Guard 10650 | -6/Cetus | Discovered new exit (range 23) 10658 | -6/Cetus | Allies destroyed Cetus Guard 10661 | -6/Cetus | Manufactured an Enhanced Grunt 10669 | -6/Cetus | Allies destroyed Cetus Guard 10678 | -6/Cetus | Allies destroyed Cetus Guard 10679 | -6/Cetus | Allies destroyed Cetus Guard 10686 | -6/Cetus | Manufactured an Enhanced Grunt 10697 | -6/Cetus | Met Revision 17 10708 | -6/Cetus | Lost 5 allies 10711 | -6/Cetus | Manufactured an Enhanced Grunt 10736 | -6/Cetus | Manufactured an Enhanced Grunt 10825 | -6/Cetus | Build established: Scavenger-Skirmisher 10897 | -6/Cetus | Entered Archives 10897 | -6/Archives | Accompanied by 8 allies (A7) 10902 | -6/Archives | Received a hacking code to weaken MAIN.C 10926 | -6/Archives | Discovered new exit (range 22) 11946 | -6/Archives | Discovered new exit (range 18) 11974 | -6/Archives | Discovered new exit (range 13) 12156 | -6/Archives | Entered Hub_04(d) 12156 | -6/Hub_04(d) | Accompanied by 7 allies 12239 | -6/Hub_04(d) | Discovered new exit (range 17) 12410 | -6/Hub_04(d) | Discovered new exit (range 12) 12483 | -6/Hub_04(d) | Network Hub disabled 12497 | -6/Hub_04(d) | Spotted Lightning 12500 | -6/Hub_04(d) | Entered Factory 12500 | -5/Factory | Accompanied by 7 allies 12500 | -5/Factory | Evolved 2 slots: Utility x2 12586 | -5/Factory | Identified exit to Upper Caves 12797 | -5/Factory | Found Prototype Launcher 12797 | -5/Factory | Identified Tesla Bomb Launcher 12800 | -5/Factory | First assault squad dispatched 13043 | -5/Factory | Garrison activated, responded to threat 13093 | -5/Factory | Lost 6 allies 13094 | -5/Factory | Identified exit to Garrison 13094 | -5/Factory | Entered Garrison 13094 | -5/Garrison | Accompanied by 2 allies 13190 | -5/Garrison | Triggered checkpoint 13227 | -5/Garrison | Garrison Relay disabled 13254 | -5/Garrison | Triggered checkpoint 13255 | -5/Garrison | Triggered checkpoint 13330 | -5/Garrison | Found embedded Infiltrators 13364 | -5/Garrison | Triggered checkpoint 13412 | -5/Garrison | Discovered new exit (range 32) 13412 | -5/Garrison | Discovered new exit (range 34) 13412 | -5/Garrison | Discovered new exit (range 68) 13490 | -5/Garrison | Triggered checkpoint 13503 | -5/Garrison | Garrison Relay disabled 13566 | -5/Garrison | Phase Generator disabled 13587 | -5/Garrison | Expanded RIF knowledge: Coupler Efficiency 13595 | -5/Garrison | Lost 3 allies 13598 | -5/Garrison | Entered Factory 13803 | -5/Factory | Build established: Bothacker-Skirmisher 13806 | -5/Factory | Discovered exit to Upper Caves (range 21) 14088 | -5/Factory | Identified exit to Garrison 14088 | -5/Factory | Entered Garrison 14126 | -5/Garrison | Triggered checkpoint 14202 | -5/Garrison | Garrison Relay disabled 14349 | -5/Garrison | Triggered checkpoint 14368 | -5/Garrison | Spotted B-75 Beast 14393 | -5/Garrison | Destroyed B-75 Beast 14420 | -5/Garrison | Triggered checkpoint 14423 | -5/Garrison | Lost 4 allies 14424 | -5/Garrison | System corruption reached 10% 14436 | -5/Garrison | Triggered checkpoint 14473 | -5/Garrison | Build established: Scavenger-Tank 14478 | -5/Garrison | Discovered new exit (range 8) 14516 | -5/Garrison | Triggered checkpoint 14574 | -5/Garrison | Expanded RIF knowledge: Zone Cloak 14631 | -5/Garrison | Discovered new exit (range 15) 14717 | -5/Garrison | Discovered new exit (range 12) 14746 | -5/Garrison | Triggered checkpoint 14870 | -5/Garrison | Garrison Relay disabled 15091 | -5/Garrison | Rescued a captive Derelict 15122 | -5/Garrison | Garrison Relay disabled 15194 | -5/Garrison | Entered Factory 15194 | -4/Factory | Accompanied by 3 allies 15194 | -4/Factory | Evolved 2 slots: Power x1, Propulsion x1 15272 | -4/Factory | Discovered new exit (range 3) 15344 | -4/Factory | Identified exit to Garrison 15505 | -4/Factory | Entered Garrison 15505 | -4/Garrison | Accompanied by 5 allies 15571 | -4/Garrison | Destroyed 8 combat bots 15593 | -4/Garrison | Lost 3 allies 15615 | -4/Garrison | Triggered checkpoint 15695 | -4/Garrison | Garrison Relay disabled 16051 | -4/Garrison | Triggered checkpoint 16057 | -4/Garrison | Spotted B-86 Titan 16058 | -4/Garrison | Triggered checkpoint 16063 | -4/Garrison | Allies destroyed B-86 Titan 16079 | -4/Garrison | Triggered checkpoint 16105 | -4/Garrison | Triggered checkpoint 16154 | -4/Garrison | Discovered new exit (range 8) 16168 | -4/Garrison | Triggered checkpoint 16230 | -4/Garrison | Garrison Relay disabled 16331 | -4/Garrison | Triggered checkpoint 16562 | -4/Garrison | Phase Generator disabled 16583 | -4/Garrison | Build established: Commander-Tank 16736 | -4/Garrison | Discovered new exit (range 9) 16751 | -4/Garrison | Triggered checkpoint 16768 | -4/Garrison | Garrison Relay disabled 16903 | -4/Garrison | Triggered checkpoint 16957 | -4/Garrison | Lost 3 allies 16989 | -4/Garrison | Rescued a captive Derelict 16992 | -4/Garrison | Rescued a captive Derelict 17083 | -4/Garrison | Discovered new exit (range 11) 17496 | -4/Garrison | Expanded RIF knowledge: Alert ID Control 17559 | -4/Garrison | Entered Factory 17559 | -4/Factory | Accompanied by 13 allies 17715 | -4/Factory | Lost 4 allies 17993 | -4/Factory | Build established: Scavenger-Tank 18149 | -4/Factory | Lost 6 allies 18345 | -4/Factory | Identified exit to Garrison 18378 | -4/Factory | Entered Garrison 18378 | -4/Garrison | Accompanied by 3 allies 18537 | -4/Garrison | Expanded RIF knowledge: Autooverride 18626 | -4/Garrison | Triggered checkpoint 18714 | -4/Garrison | Garrison Relay disabled 18786 | -4/Garrison | Triggered checkpoint 18799 | -4/Garrison | Spotted B-86 Titan 18890 | -4/Garrison | Lost 3 parts (1p2w) 18997 | -4/Garrison | Destroyed B-86 Titan 19011 | -4/Garrison | Triggered checkpoint 19121 | -4/Garrison | Destroyed 8 combat bots 19134 | -4/Garrison | Triggered checkpoint 19228 | -4/Garrison | Discovered new exit (range 14) 19303 | -4/Garrison | Triggered checkpoint 19360 | -4/Garrison | Expanded RIF knowledge: Structural Interface 19392 | -4/Garrison | Garrison Relay disabled 19726 | -4/Garrison | Entered Research 19726 | -3/Research | Evolved 2 slots: Utility x1, Weapon x1 19860 | -3/Research | Identified exit to Garrison 19860 | -3/Research | Entered Garrison 19892 | -3/Garrison | Triggered checkpoint 20159 | -3/Garrison | Build established: Bothacker-Tank 20243 | -3/Garrison | Spotted B-86 Titan 20261 | -3/Garrison | Triggered checkpoint 20300 | -3/Garrison | Triggered checkpoint 20325 | -3/Garrison | Garrison Relay disabled 20557 | -3/Garrison | Triggered checkpoint 20632 | -3/Garrison | Triggered checkpoint 20636 | -3/Garrison | Destroyed B-86 Titan 20710 | -3/Garrison | Triggered checkpoint 20821 | -3/Garrison | Discovered new exit (range 22) 20871 | -3/Garrison | Build established: Scavenger-Tank 20882 | -3/Garrison | Triggered checkpoint 20928 | -3/Garrison | Garrison Relay disabled 20961 | -3/Garrison | Spotted B-86 Titan 20973 | -3/Garrison | Assimilated Titan 8a with formatsys_high 21011 | -3/Garrison | Found Relay Coupler [Proto] 21156 | -3/Garrison | Discovered new exit (range 13) 21182 | -3/Garrison | Triggered checkpoint 21200 | -3/Garrison | Discovered new exit (range 6) 21239 | -3/Garrison | Build established: Botlord-Tank 21332 | -3/Garrison | Triggered checkpoint 21345 | -3/Garrison | Found embedded Infiltrators 21352 | -3/Garrison | Garrison Relay disabled 21427 | -3/Garrison | Learned Research security intel 21624 | -3/Garrison | Discovered new exit (range 12) 21808 | -3/Garrison | Triggered checkpoint 21851 | -3/Garrison | Expanded RIF knowledge: Autooverride 21867 | -3/Garrison | Garrison Relay disabled 22129 | -3/Garrison | Entered Research 22129 | -2/Research | Accompanied by 6 allies 22129 | -2/Research | Evolved 2 slots: Utility x2 22331 | -2/Research | Identified exit to Garrison 22365 | -2/Research | Entered Garrison 22365 | -2/Garrison | Accompanied by 6 allies 22390 | -2/Garrison | Destroyed Titan 8a 22451 | -2/Garrison | Triggered checkpoint 22488 | -2/Garrison | Garrison Relay disabled 22533 | -2/Garrison | Rescued a captive Derelict 22534 | -2/Garrison | Rescued a captive Derelict 22833 | -2/Garrison | Spotted B-90 Cyclops 22835 | -2/Garrison | Triggered checkpoint 22836 | -2/Garrison | P-80 Master assimilated allied GA-U4Q(g) 22864 | -2/Garrison | Triggered checkpoint 22864 | -2/Garrison | Triggered checkpoint 22900 | -2/Garrison | Lost 7 allies 22912 | -2/Garrison | Destroyed B-90 Cyclops 22967 | -2/Garrison | Triggered checkpoint 23096 | -2/Garrison | Found Unknown Device 23096 | -2/Garrison | Identified Adv. Force Booster 23147 | -2/Garrison | Discovered new exit (range 11) 23198 | -2/Garrison | Triggered checkpoint 23212 | -2/Garrison | Expanded RIF knowledge: Coupler Efficiency 23235 | -2/Garrison | Garrison Relay disabled 23510 | -2/Garrison | Entered Research 23510 | -2/Research | Accompanied by 5 allies 23700 | -2/Research | Lost 3 allies 23810 | -2/Research | P-80 Master assimilated allied Artificer 9a 24047 | -2/Research | Spotted B-90 Cyclops 24060 | -2/Research | Identified exit to Garrison 24060 | -2/Research | Entered Garrison 24060 | -2/Garrison | Accompanied by 1 ally 24096 | -2/Garrison | Triggered checkpoint 24157 | -2/Garrison | Garrison Relay disabled 24375 | -2/Garrison | Spotted B-90 Cyclops 24378 | -2/Garrison | Triggered checkpoint 24380 | -2/Garrison | P-80 Master assimilated allied S-43 Plague 24395 | -2/Garrison | Triggered checkpoint 24400 | -2/Garrison | Triggered checkpoint 24412 | -2/Garrison | Destroyed 7 combat bots 24425 | -2/Garrison | Triggered checkpoint 24440 | -2/Garrison | Lost 6 allies 24487 | -2/Garrison | P-80 Master assimilated allied Warden 9h 24551 | -2/Garrison | Discovered new exit (range 15) 24574 | -2/Garrison | Spotted B-90 Cyclops 24602 | -2/Garrison | Destroyed B-90 Cyclops 24615 | -2/Garrison | System corruption reached 10% 24646 | -2/Garrison | Found Relay Coupler [Proto] 24718 | -2/Garrison | Triggered checkpoint 24899 | -2/Garrison | Garrison Relay disabled 24926 | -2/Garrison | Triggered checkpoint 25068 | -2/Garrison | Garrison Relay disabled 25086 | -2/Garrison | Triggered checkpoint 25159 | -2/Garrison | Discovered new exit (range 8) 25302 | -2/Garrison | Discovered new exit (range 9) 25332 | -2/Garrison | Triggered checkpoint 25349 | -2/Garrison | Garrison Relay disabled 25393 | -2/Garrison | Expanded RIF knowledge: Patrol Navigation 25663 | -2/Garrison | Entered Access 25663 | -1/Access | Accompanied by 13 allies 25663 | -1/Access | Evolved 2 slots: Utility x2 25827 | -1/Access | System corruption reached 10% 25912 | -1/Access | Lost 5 allies 25924 | -1/Access | Identified exit to Surface 26163 | -1/Access | First assault squad dispatched 26421 | -1/Access | Lost 4 allies 26474 | -1/Access | System corruption reached 30% 26517 | -1/Access | Lost 5 allies 26747 | -1/Access | High security lockdown imminent 26827 | -1/Access | High security lockdown engaged 27221 | -1/Access | Destroyed Investigator 27297 | -1/Access | Destroyed 8 combat bots 27302 | -1/Access | Found Prototype Launcher 27302 | -1/Access | Identified Containment Facilitator 27304 | -1/Access | Spotted Executioner 27322 | -1/Access | Spotted Striker 27337 | -1/Access | P-80 Master assimilated allied Y-72 Warden 27372 | -1/Access | Released all parts (11) 27374 | -1/Access | Core integrity fell below 50% 27379 | -1/Access | Self-destructed Last Messages --------------- 27372_ Released Huge Storage Unit. 27372_ Released Adv. Transmission Jammer. 27372_ Released Relay Coupler [Specialist]. 27372_ Released Graphene Brace. 27372_ Released Rnf. Antimatter Reactor. 27372_ Released Arm. Heavy Treads. 27372_ Released Adv. Heavy Siege Treads. 27372_ Released Adv. Remote Datajack. 27372_ Acquired 80 matter. 27375_ The unstable cave ceiling collapses. 27375_ P-80 Master stasis bubble strength at 18. 27375_ M-36 Artificer repairs P-80 Master Imp. Antigrav System. 27375_ P-80 Master resets I-47 Archangel, system corruption cleaned. 27376_ P-80 Master resets B-74 Champion, system corruption cleaned. 27377_ M-36 Artificer repairs P-80 Master Gamma Rifle. 27378_ Penetrated by Slug. Map ----- +----------------------------------------------------+ | ?????????? ?????????????????????????????? | | ?????????? #????????????????????????????? | | ?????????? #????????????????????????????? | | ?????????# #????????????????????????????? | | ?????????# #????????????????????????????? | | ?????????# #????????????????????????????? | | ?????????# #????????????????????????????? | | ?????????# #????????????????????????????? | | ?????????# #????????????????????????????? | | ?????????# #????????????????????????????? | | ?????????# #????????????????????????????? | | ?????????# #????????????????????????????? | | ?????????# #????????????????????????????? | | ?????????# #????????????????????????????? | | ?????????# #????????????????????????????? | | ?????????# #???#####????????????????????? | | ?????????# ##### #;#####????????????????? | | ?????????# # ] #????????????????? | | ?????????# C# #######??????????? | | ?????????# # ##"##"############ | | ?????????# C# # ## | | ?????????# # # ## | | ?????????# # # ## | | ?????????+ # ] ## | | ?????????# # # " | | ?????????# # @ Y """ | | ?????????# + b%!%!## """ | | ?????????# # E =!p]i " | | ?????????# # |p p!*= | | ?????????# w # !g[!* | | ????????## #### # # =p=m | | ????????# #?# # # gg% | | ????????# ####### % % #######+ | | ????????# i p %% "" | | ????????# " " C p "%%" | | ????????# ####### # #%####+##+ | | ????????# #?????##+# # ? | | ????????###+####???????? ## | | ??????????????????????? # ###? | | ?????????????????????? " ###??? | | ?????????????????????? """ ?????# | | ????????????????????? """?????# | | ???????????????????? " ?????# !! | | ???????????????????? ?????# !! | | ??????????????????? ?????# | | ??????????????????#####???#??????# | | ?????????????????????????????????# | | ?????????????????????????????????# | | ?????????????????????????????????#### ###### | | ????????????????????????????????????##?????? | +----------------------------------------------------+ Best States ------------- Heat Dissipation 100 Coolant Potential 200 Energy Generation 45 Energy Capacity 600 Matter Stores 300 Matter Capacity 300 Sight Range 23 Terrain Scan Range 16 Terrain Scan Density 110 Jamming Range 16 Additional Mass Support 12 Armor Coverage 1650 Resistance: KI 20 Resistance: TH 15 Core Shielding 30 Weapon Shielding 66 Phase Shifting 15 Evasion (%) 55 Targeting Accuracy 16 Armor Integrity Analysis 30 Recoil Reduction 6 Offensive Hacking 14 Defensive Hacking 12 Relay Coupler Types 5 Relay Coupler Value 185 Authchip Count 2 Item Schematics ----------------- Lgt. Armor Plating | -8/Materials | Scanalyzed Lgt. Armored Exoskeleton | -6/Extension | Hacked Centrium Medium Armor Plating | -5/Factory | Scanalyzed Quantum Reactor | -5/Factory | Scanalyzed Med. Armored Exoskeleton | -5/Factory | Hacked Robot Schematics ------------------ None Fabricated ------------ Nothing Repaired ---------- Imp. Carbon-fiber Leg | 16% | -8/Materials Alien Tech Used ----------------- None Achievements -------------- Beloved Generalissimo Pwned Challenges ------------ None Game ------ Seed SalvageEnhancedShifter Manual? 0 Play Time 09:04:36 Cumulative 139.1 hours Start 2025.10.09 @ 16:08:46 End 2025.10.14 @ 22:23:09 Sessions 31 Manual Loads 0 Difficulty Rogue Special Mode None Game No. 72 Rogue 67 Adventurer 5 Explorer 0 Win Type - Total 2 Types 2/0/0/0/0/0/0/0/0/0 Lore% 56 Gallery% 60 Achievement% 56 Wizard Run 0 Options --------- Layout 1 ASCII 0 Keyboard 0 Movement Numpad Keybinds 0 Fullscreen 1 Font 24/Smallcaps Map View 50x35 Zoom Use 0% Tactical HUD 1 Map Filters NONE Filters NONE Steam 1 RUN: f951ffed-25d8-4384-80c1-af3abb6dd454